Publisher Label,Publisher URI,"Supplier ID","Supplier","Invoice No.","Amount £","Purpose","Transaction Number","Payment Date","Organisational Unit","Cost Centre(T)","Internal Category Number"
"Wolverhampton City Council","http://opendatacommunities.org/id/metropolitan-district-council/wolverhampton","719539","Aladdin�s Education Ltd","00039","150.00","Room Hire","130239473","04/01/2019","Headstart","Headstart Hubs","R2201"
"Wolverhampton City Council","http://opendatacommunities.org/id/metropolitan-district-council/wolverhampton","719543","ION Projects Limited","574","609,279.87","Construction and Conversion","130240036","16/01/2019","-","GF - Interchange - Ph2 Train Station/MSCP/Metro Extension","C1100"
"Wolverhampton City Council","http://opendatacommunities.org/id/metropolitan-district-council/wolverhampton","719556","Care and Independence Ltd","0000020526","155.00","Equipment - Purchase","130236007","18/01/2019","Older People Provider Services","ILS Stores","R4000"
"Wolverhampton City Council","http://opendatacommunities.org/id/metropolitan-district-council/wolverhampton","719556","Care and Independence Ltd","0000020526","12.50","Comms - Postage","130236007","18/01/2019","Older People Provider Services","ILS Stores","R4503"
"Wolverhampton City Council","http://opendatacommunities.org/id/metropolitan-district-council/wolverhampton","719556","Care and Independence Ltd","0000021193","374.30","Equipment - Purchase","130238070","02/01/2019","Older People Provider Services","ILS Stores","R4000"
"Wolverhampton City Council","http://opendatacommunities.org/id/metropolitan-district-council/wolverhampton","719556","Care and Independence Ltd","0000020907","323.00","Equipment - Purchase","130237207","16/01/2019","Older People Provider Services","ILS Stores","R4000"
"Wolverhampton City Council","http://opendatacommunities.org/id/metropolitan-district-council/wolverhampton","719559","Good Shepherd Ministry (New Contract)","GSM5","3,966.78","Grant Payments","190546752","09/01/2019","Housing","Supported Accommodation Provider Payments","R4700"
"Wolverhampton City Council","http://opendatacommunities.org/id/metropolitan-district-council/wolverhampton","719559","Good Shepherd Ministry (New Contract)","0021","4,450.83","Grant Payments","190546751","09/01/2019","Housing","Supported Accommodation Provider Payments","R4700"
"Wolverhampton City Council","http://opendatacommunities.org/id/metropolitan-district-council/wolverhampton","719562","Ashcroft Hollow Nursing Home","P195678 03021920190114","2,223.72","TPP - Nursing Care - Long Term","190550389","16/01/2019","Older People Care Purchasing","OP Care Purchasing (Spot Placements)","R5410"
"Wolverhampton City Council","http://opendatacommunities.org/id/metropolitan-district-council/wolverhampton","719564","Acoustic Consultants Ltd","INV-8135","1,900.00","External Professional Fees","130239261","16/01/2019","-","Sports Investment Strategy","C6002"
"Wolverhampton City Council","http://opendatacommunities.org/id/metropolitan-district-council/wolverhampton","719568","Dolphin Stairlifts (Central) Ltd","18/0292/SAG","6,900.00","Grants paid out to other organisations","190553914","23/01/2019","-","Disabled Facilities Grants","C5011"
"Wolverhampton City Council","http://opendatacommunities.org/id/metropolitan-district-council/wolverhampton","719568","Dolphin Stairlifts (Central) Ltd","18/0196/SAG","6,900.00","Grants paid out to other organisations","190555841","30/01/2019","-","Disabled Facilities Grants","C5011"
"Wolverhampton City Council","http://opendatacommunities.org/id/metropolitan-district-council/wolverhampton","719570","Grayson Design & Print Ltd","38639","1,236.28","Printing","130240846","18/01/2019","ICTS","Document Centre - General","R4300"
"Wolverhampton City Council","http://opendatacommunities.org/id/metropolitan-district-council/wolverhampton","719570","Grayson Design & Print Ltd","38497","61.16","Printing","130237208","02/01/2019","ICTS","Document Centre - General","R4300"
"Wolverhampton City Council","http://opendatacommunities.org/id/metropolitan-district-council/wolverhampton","719584","Derbyshire Light Medical","558","720.00","Medical Fees","130237553","02/01/2019","Licensing","Private Hire Vehicles","R1400"
"Wolverhampton City Council","http://opendatacommunities.org/id/metropolitan-district-council/wolverhampton","719605","Alyson Sayers Safeguarding Ltd","AS453","1,400.00","Training Expenses","130237209","02/01/2019","Early Years","Early Years & Universal Service","R1650"
"Wolverhampton City Council","http://opendatacommunities.org/id/metropolitan-district-council/wolverhampton","719668","St Stephens C Of E Primary","P19657520190122","600.00","Grant Payments to Individuals","190553903","23/01/2019","Inclusion Support","Pupil Premium","R6402"
"Wolverhampton City Council","http://opendatacommunities.org/id/metropolitan-district-council/wolverhampton","719678","Pasta King (UK) Ltd","13","2,912.15","Provisions (Resale)","130240847","18/01/2019","Catering","Education Catering - General Overheads","R4102"
"Wolverhampton City Council","http://opendatacommunities.org/id/metropolitan-district-council/wolverhampton","719702","Piranha","8059","60.00","Clothing / Uniforms","130241812","25/01/2019","Leisure Services","Central Baths","R4201"
"Wolverhampton City Council","http://opendatacommunities.org/id/metropolitan-district-council/wolverhampton","719713","GME Springs Coventry Ltd","INV08010","327.00","Equipment - Purchase","190551978","18/01/2019","Fleet Services","Fleet Management","R4000"
"Wolverhampton City Council","http://opendatacommunities.org/id/metropolitan-district-council/wolverhampton","719713","GME Springs Coventry Ltd","INV08010","50.00","Equipment - Purchase","190551978","18/01/2019","Fleet Services","Fleet Management","R4000"
"Wolverhampton City Council","http://opendatacommunities.org/id/metropolitan-district-council/wolverhampton","719751","Green Park Interim & Executive Limited","46654","11,700.00","Agency Staff","130237085","02/01/2019","Waste and Recycling Service","Waste Collection and Recycling Service - General","R1100"
"Wolverhampton City Council","http://opendatacommunities.org/id/metropolitan-district-council/wolverhampton","719755","Goodchilds Estate Agents (W�ton) Ltd","20","395.00","No Recourse to Public Funds","130237943","09/01/2019","Strengthening Families","CP Area 6 - Dovecotes","R6314"
"Wolverhampton City Council","http://opendatacommunities.org/id/metropolitan-district-council/wolverhampton","719756","Fish & Co","608822-CrtFee","215.00","Services - Professional Fees","190555132","30/01/2019","Legal Services","Centralised External Legal Costs","R4400"
"Wolverhampton City Council","http://opendatacommunities.org/id/metropolitan-district-council/wolverhampton","719756","Fish & Co","608822-Jones","250.00","Services - Professional Fees","190555131","30/01/2019","Legal Services","Centralised External Legal Costs","R4400"
"Wolverhampton City Council","http://opendatacommunities.org/id/metropolitan-district-council/wolverhampton","719813","Jill Edwards","NEF Spring 2019 INST 1","918.00","TPP - Private Nursery Education Funding","190553185","23/01/2019","Early Years","Early Years Universal Entitlement for 3 and 4 Year Olds","R5035"
"Wolverhampton City Council","http://opendatacommunities.org/id/metropolitan-district-council/wolverhampton","719814","Nayera Everby","NEF Spring 2019 INST 1","459.00","TPP - Private Nursery Education Funding","190553185","23/01/2019","Early Years","Early Years Universal Entitlement for 3 and 4 Year Olds","R5035"
"Wolverhampton City Council","http://opendatacommunities.org/id/metropolitan-district-council/wolverhampton","719819","LearnPlay Foundation","01817","2,597.43","Training Expenses","130240037","11/01/2019","Skills","IMPACT","R1650"
"Wolverhampton City Council","http://opendatacommunities.org/id/metropolitan-district-council/wolverhampton","719878","Ryal Media Group Ltd","1905","186.00","Staff Advertising Costs","130242100","30/01/2019","ICTS","Strategic ICTS (ICT Service Budget)","R1700"
"Wolverhampton City Council","http://opendatacommunities.org/id/metropolitan-district-council/wolverhampton","719878","Ryal Media Group Ltd","1606","224.00","Staff Advertising Costs","130241193","18/01/2019","Inclusion Support","Inclusion Support","R1700"
"Wolverhampton City Council","http://opendatacommunities.org/id/metropolitan-district-council/wolverhampton","719941","Brakel Airvent LTD","SIN-022367","292.00","Equipment - Purchase","130237758","18/01/2019","Facilities Management","Bilston Town Hall","R4000"
"Wolverhampton City Council","http://opendatacommunities.org/id/metropolitan-district-council/wolverhampton","719947","Street Eats Food","197460","985.26","Provisions (Resale)","130238511","11/01/2019","Catering","Education Catering - General Overheads","R4102"
"Wolverhampton City Council","http://opendatacommunities.org/id/metropolitan-district-council/wolverhampton","719947","Street Eats Food","197426","750.75","Provisions (Resale)","130238510","11/01/2019","Catering","Education Catering - General Overheads","R4102"
"Wolverhampton City Council","http://opendatacommunities.org/id/metropolitan-district-council/wolverhampton","719947","Street Eats Food","197482","582.24","Provisions (Resale)","130238512","11/01/2019","Catering","Education Catering - General Overheads","R4102"
"Wolverhampton City Council","http://opendatacommunities.org/id/metropolitan-district-council/wolverhampton","719947","Street Eats Food","194892","123.20","Provisions (Resale)","130236141","18/01/2019","Leisure Services","WV Active Catering - Central","R4102"
"Wolverhampton City Council","http://opendatacommunities.org/id/metropolitan-district-council/wolverhampton","719947","Street Eats Food","197940","444.15","Provisions (Resale)","130239158","18/01/2019","Catering","Education Catering - General Overheads","R4102"
"Wolverhampton City Council","http://opendatacommunities.org/id/metropolitan-district-council/wolverhampton","719947","Street Eats Food","197969","705.39","Provisions (Resale)","130239077","18/01/2019","Catering","Education Catering - General Overheads","R4102"
"Wolverhampton City Council","http://opendatacommunities.org/id/metropolitan-district-council/wolverhampton","719947","Street Eats Food","197907","144.21","Provisions (Resale)","130239076","18/01/2019","Leisure Services","WV Active Catering","R4102"
"Wolverhampton City Council","http://opendatacommunities.org/id/metropolitan-district-council/wolverhampton","719947","Street Eats Food","197981","636.79","Provisions (Resale)","130239474","18/01/2019","Catering","Education Catering - General Overheads","R4102"
"Wolverhampton City Council","http://opendatacommunities.org/id/metropolitan-district-council/wolverhampton","719947","Street Eats Food","197554","548.58","Provisions (Resale)","130238516","11/01/2019","Leisure Services","Bert Williams Leisure Centre Caf�","R4102"
"Wolverhampton City Council","http://opendatacommunities.org/id/metropolitan-district-council/wolverhampton","719947","Street Eats Food","197552","57.24","Provisions (Resale)","130238514","11/01/2019","Catering","Civic Centre Catering","R4102"
"Wolverhampton City Council","http://opendatacommunities.org/id/metropolitan-district-council/wolverhampton","719947","Street Eats Food","197551","855.68","Provisions (Resale)","130238513","11/01/2019","Catering","Civic Centre Catering","R4102"
"Wolverhampton City Council","http://opendatacommunities.org/id/metropolitan-district-council/wolverhampton","719947","Street Eats Food","197553","224.99","Provisions (Resale)","130238515","11/01/2019","Catering","Meals on Wheels","R4102"
"Wolverhampton City Council","http://opendatacommunities.org/id/metropolitan-district-council/wolverhampton","719947","Street Eats Food","196505","743.30","Provisions (Resale)","130237759","04/01/2019","Catering","Education Catering - General Overheads","R4102"
"Wolverhampton City Council","http://opendatacommunities.org/id/metropolitan-district-council/wolverhampton","719947","Street Eats Food","196643","829.41","Provisions (Resale)","130237556","04/01/2019","Catering","Civic Centre Catering","R4102"
"Wolverhampton City Council","http://opendatacommunities.org/id/metropolitan-district-council/wolverhampton","719947","Street Eats Food","196569","660.18","Provisions (Resale)","130237760","04/01/2019","Catering","Education Catering - General Overheads","R4102"
"Wolverhampton City Council","http://opendatacommunities.org/id/metropolitan-district-council/wolverhampton","719947","Street Eats Food","196546","904.70","Provisions (Resale)","130237555","04/01/2019","Catering","Education Catering - General Overheads","R4102"
"Wolverhampton City Council","http://opendatacommunities.org/id/metropolitan-district-council/wolverhampton","719947","Street Eats Food","191833","89.79","Provisions (Resale)","130234052","16/01/2019","Leisure Services","WV Active Catering","R4102"
"Wolverhampton City Council","http://opendatacommunities.org/id/metropolitan-district-council/wolverhampton","719947","Street Eats Food","196645","201.35","Provisions (Resale)","130237558","04/01/2019","Catering","Meals on Wheels","R4102"
"Wolverhampton City Council","http://opendatacommunities.org/id/metropolitan-district-council/wolverhampton","719947","Street Eats Food","196644","87.56","Provisions (Resale)","130237557","04/01/2019","Catering","Civic Centre Catering","R4102"
"Wolverhampton City Council","http://opendatacommunities.org/id/metropolitan-district-council/wolverhampton","719947","Street Eats Food","196646","427.37","Provisions (Resale)","130237559","04/01/2019","Leisure Services","Bert Williams Leisure Centre Caf�","R4102"
"Wolverhampton City Council","http://opendatacommunities.org/id/metropolitan-district-council/wolverhampton","719947","Street Eats Food","193952","655.58","Provisions (Resale)","130235453","09/01/2019","Leisure Services","WV Active Catering","R4102"
"Wolverhampton City Council","http://opendatacommunities.org/id/metropolitan-district-council/wolverhampton","719947","Street Eats Food","196461","210.96","Provisions (Resale)","130237554","09/01/2019","Leisure Services","WV Active Catering","R4102"
"Wolverhampton City Council","http://opendatacommunities.org/id/metropolitan-district-council/wolverhampton","719947","Street Eats Food","198932","179.72","Provisions (Resale)","130239265","25/01/2019","Leisure Services","Bert Williams Leisure Centre Caf�","R4102"
"Wolverhampton City Council","http://opendatacommunities.org/id/metropolitan-district-council/wolverhampton","719947","Street Eats Food","198899","25.61","Provisions (Resale)","130239262","25/01/2019","Leisure Services","WV Active Catering","R4102"
"Wolverhampton City Council","http://opendatacommunities.org/id/metropolitan-district-council/wolverhampton","719947","Street Eats Food","198930","179.80","Provisions (Resale)","130239263","25/01/2019","Catering","Civic Centre Catering","R4102"
"Wolverhampton City Council","http://opendatacommunities.org/id/metropolitan-district-council/wolverhampton","719947","Street Eats Food","197380","342.84","Provisions (Resale)","130238508","11/01/2019","Leisure Services","WV Active Catering","R4102"
"Wolverhampton City Council","http://opendatacommunities.org/id/metropolitan-district-council/wolverhampton","719947","Street Eats Food","194876","376.28","Provisions (Resale)","130236140","16/01/2019","Leisure Services","WV Active Catering","R4102"
"Wolverhampton City Council","http://opendatacommunities.org/id/metropolitan-district-council/wolverhampton","719947","Street Eats Food","195808","68.11","Provisions (Resale)","130238233","16/01/2019","Leisure Services","WV Active Catering - Central","R4102"
"Wolverhampton City Council","http://opendatacommunities.org/id/metropolitan-district-council/wolverhampton","719947","Street Eats Food","197396","131.36","Provisions (Resale)","130238509","16/01/2019","Leisure Services","WV Active Catering - Central","R4102"
"Wolverhampton City Council","http://opendatacommunities.org/id/metropolitan-district-council/wolverhampton","719947","Street Eats Food","195792","750.64","Provisions (Resale)","130236923","09/01/2019","Leisure Services","WV Active Catering","R4102"
"Wolverhampton City Council","http://opendatacommunities.org/id/metropolitan-district-council/wolverhampton","719947","Street Eats Food","198931","191.28","Provisions (Resale)","130239264","25/01/2019","Catering","Meals on Wheels","R4102"
"Wolverhampton City Council","http://opendatacommunities.org/id/metropolitan-district-council/wolverhampton","719949","PurePromoter Ltd T/A Pure360","233724","1,500.00","Marketing \ Non-staff advertising","130241813","25/01/2019","Visitor Economy","Visitor Economy - Development","R4317"
"Wolverhampton City Council","http://opendatacommunities.org/id/metropolitan-district-council/wolverhampton","719949","PurePromoter Ltd T/A Pure360","235128","224.00","Marketing \ Non-staff advertising","130237761","02/01/2019","Visitor Economy","Audience Development","R4317"
"Wolverhampton City Council","http://opendatacommunities.org/id/metropolitan-district-council/wolverhampton","719978","Elisabeth Briggs Physiotherapy","0020","1,100.00","Services - Professional Fees","130238236","09/01/2019","Independent Living Service","Independent Living Service","R4400"
"Wolverhampton City Council","http://opendatacommunities.org/id/metropolitan-district-council/wolverhampton","719998","Perfect Circle JV Ltd","28370753","4,140.36","Services - Professional Fees","130237765","25/01/2019","Capital Programme","Capital Programme Team","R4400"
"Wolverhampton City Council","http://opendatacommunities.org/id/metropolitan-district-council/wolverhampton","719998","Perfect Circle JV Ltd","28370750","9,086.40","Services - Professional Fees","130237764","25/01/2019","Capital Programme","Capital Programme Team","R4400"
"Wolverhampton City Council","http://opendatacommunities.org/id/metropolitan-district-council/wolverhampton","719998","Perfect Circle JV Ltd","28367505","3,286.00","Services - Professional Fees","130235331","09/01/2019","Capital Programme","Capital Programme Team","R4400"
"Wolverhampton City Council","http://opendatacommunities.org/id/metropolitan-district-council/wolverhampton","720011","AMV Couriers LTD","7862","35.00","Comms - Postage","130237561","04/01/2019","Children & Young People In Care","Adoption and Residence Team & Allowances","R4503"
"Wolverhampton City Council","http://opendatacommunities.org/id/metropolitan-district-council/wolverhampton","720011","AMV Couriers LTD","7901","125.00","Comms - Postage","130238716","11/01/2019","Public Service Reform","Electoral Registration","R4503"
"Wolverhampton City Council","http://opendatacommunities.org/id/metropolitan-district-council/wolverhampton","720011","AMV Couriers LTD","7906","125.00","Comms - Postage","130238518","11/01/2019","Children & Young People In Care","Adoption and Residence Team & Allowances","R4503"
"Wolverhampton City Council","http://opendatacommunities.org/id/metropolitan-district-council/wolverhampton","720011","AMV Couriers LTD","7884","210.00","Comms - Postage","130238517","11/01/2019","Legal Services","Legal Services","R4503"
"Wolverhampton City Council","http://opendatacommunities.org/id/metropolitan-district-council/wolverhampton","720011","AMV Couriers LTD","7840","824.50","Comms - Postage","130239266","25/01/2019","Revenues & Benefits","Revenues","R4503"
"Wolverhampton City Council","http://opendatacommunities.org/id/metropolitan-district-council/wolverhampton","720011","AMV Couriers LTD","7861","120.00","Comms - Postage","130238072","04/01/2019","Children & Young People In Care","Adoption and Residence Team & Allowances","R4503"
"Wolverhampton City Council","http://opendatacommunities.org/id/metropolitan-district-council/wolverhampton","720011","AMV Couriers LTD","7916","50.00","Comms - Postage","130239078","18/01/2019","ICTS","Document Centre - General","R4503"
"Wolverhampton City Council","http://opendatacommunities.org/id/metropolitan-district-council/wolverhampton","720011","AMV Couriers LTD","7920","247.50","Comms - Postage","130239267","18/01/2019","Legal Services","Legal Services","R4503"
"Wolverhampton City Council","http://opendatacommunities.org/id/metropolitan-district-council/wolverhampton","720011","AMV Couriers LTD","7852","135.00","Comms - Postage","130237560","04/01/2019","Legal Services","Legal Services","R4503"
"Wolverhampton City Council","http://opendatacommunities.org/id/metropolitan-district-council/wolverhampton","720011","AMV Couriers LTD","7860","115.00","Comms - Postage","130238071","04/01/2019","Children & Young People In Care","Adoption and Residence Team & Allowances","R4503"
"Wolverhampton City Council","http://opendatacommunities.org/id/metropolitan-district-council/wolverhampton","720014","Waterlogic","4595778","430.14","Equipment - R & M","130239630","09/01/2019","Leisure Services","Aldersley Leisure Village","R4003"
"Wolverhampton City Council","http://opendatacommunities.org/id/metropolitan-district-council/wolverhampton","720043","The Minories","P195766 03021920190114","6,997.72","TPP - Nursing Care - Short Term","190550392","16/01/2019","Physical Disabilities Care Purchasing","PD Care Purchasing (Spot Placements)","R5411"
"Wolverhampton City Council","http://opendatacommunities.org/id/metropolitan-district-council/wolverhampton","720057","Birmingham Womens & Childrens NHS FT","15709043","1,235.08","Services - Professional Fees","130242279","30/01/2019","Public Service Reform","Coroners Service","R4400"
"Wolverhampton City Council","http://opendatacommunities.org/id/metropolitan-district-council/wolverhampton","720057","Birmingham Womens & Childrens NHS FT","15709033","1,112.12","Services - Professional Fees","130242278","30/01/2019","Public Service Reform","Coroners Service","R4400"
"Wolverhampton City Council","http://opendatacommunities.org/id/metropolitan-district-council/wolverhampton","720077","Strictly Tables and Chairs Ltd","170085","1,517.50","Furniture","130239475","30/01/2019","Visitor Economy","Archives","R4004"
"Wolverhampton City Council","http://opendatacommunities.org/id/metropolitan-district-council/wolverhampton","720077","Strictly Tables and Chairs Ltd","170085","85.00","Comms - Postage","130239475","30/01/2019","Visitor Economy","Archives","R4503"
"Wolverhampton City Council","http://opendatacommunities.org/id/metropolitan-district-council/wolverhampton","720085","Honey Brothers","IN187238","43.30","Materials","130238519","11/01/2019","Environmental Maintenance","Arbor Scheme","R4007"
"Wolverhampton City Council","http://opendatacommunities.org/id/metropolitan-district-council/wolverhampton","720085","Honey Brothers","IN186929","858.57","Materials","130238237","09/01/2019","Environmental Maintenance","Arbor Scheme","R4007"
"Wolverhampton City Council","http://opendatacommunities.org/id/metropolitan-district-council/wolverhampton","720147","St Barts CE Multi Acad  (Woodfield Inf)","HCLI SEN Payment for 2018-19","6,939.40","Grant Payments","190545443","02/01/2019","Central Education","Primary ISB","R4700"
"Wolverhampton City Council","http://opendatacommunities.org/id/metropolitan-district-council/wolverhampton","720176","Rent Connect Properties Ltd","CP-WCC025-02","30.00","No Recourse to Public Funds","190547670","09/01/2019","Strengthening Families","CP Area 5-Whitemore Reans","R6314"
"Wolverhampton City Council","http://opendatacommunities.org/id/metropolitan-district-council/wolverhampton","720176","Rent Connect Properties Ltd","CP-WCC024-02","930.00","No Recourse to Public Funds","190547671","09/01/2019","Strengthening Families","CP Area 5-Whitemore Reans","R6314"
"Wolverhampton City Council","http://opendatacommunities.org/id/metropolitan-district-council/wolverhampton","720176","Rent Connect Properties Ltd","CP-WCC025-01","190.00","No Recourse to Public Funds","130241069","23/01/2019","Strengthening Families","CP Area 5-Whitemore Reans","R6314"
"Wolverhampton City Council","http://opendatacommunities.org/id/metropolitan-district-council/wolverhampton","720176","Rent Connect Properties Ltd","CP-WCC023-03","900.00","No Recourse to Public Funds","190547672","09/01/2019","Strengthening Families","CP Area 5-Whitemore Reans","R6314"
"Wolverhampton City Council","http://opendatacommunities.org/id/metropolitan-district-council/wolverhampton","720201","The Rowan School","EW0091","11,833.33","TPP - Independent Schools","130238717","11/01/2019","Special Educational Needs","SEN Education OOC","R5036"
"Wolverhampton City Council","http://opendatacommunities.org/id/metropolitan-district-council/wolverhampton","720201","The Rowan School","EW0095","16,333.32","TPP - Independent Schools","130239942","09/01/2019","Special Educational Needs","SEN Education OOC","R5036"
"Wolverhampton City Council","http://opendatacommunities.org/id/metropolitan-district-council/wolverhampton","720201","The Rowan School","EW1","-11,833.33","TPP - Independent Schools","130238718","09/01/2019","Special Educational Needs","SEN Education OOC","R5036"
"Wolverhampton City Council","http://opendatacommunities.org/id/metropolitan-district-council/wolverhampton","720219","Solvendis Ltd","INV-1929","175.00","Training Expenses","130239476","04/01/2019","Adult Education","Staff Development","R1650"
"Wolverhampton City Council","http://opendatacommunities.org/id/metropolitan-district-council/wolverhampton","720232","Ormiston NEW School","47","6,250.00","Rent","130240350","16/01/2019","Facilities Management","Fordhouses/Oxley Community Centre","R2200"
"Wolverhampton City Council","http://opendatacommunities.org/id/metropolitan-district-council/wolverhampton","720232","Ormiston NEW School","31","6,250.00","Rent","130240349","16/01/2019","Facilities Management","Fordhouses/Oxley Community Centre","R2200"
"Wolverhampton City Council","http://opendatacommunities.org/id/metropolitan-district-council/wolverhampton","720232","Ormiston NEW School","15","6,250.00","Rent","130240348","11/01/2019","Facilities Management","Fordhouses/Oxley Community Centre","R2200"
"Wolverhampton City Council","http://opendatacommunities.org/id/metropolitan-district-council/wolverhampton","720241","Criccieth Cleaning Limited","2158","754.00","TPP - Short Breaks","130240454","25/01/2019","Carer Support","Carers Support","R5500"
"Wolverhampton City Council","http://opendatacommunities.org/id/metropolitan-district-council/wolverhampton","720242","Woodcross and Manor Playgroup and Breakfast Club","TFT Spring 2019 Inst 1","754.56","TPP - Private Nursery Education Funding","190553192","23/01/2019","Early Years","Early Years Entitlement Funding for Disadvantaged 2 Year Olds","R5035"
"Wolverhampton City Council","http://opendatacommunities.org/id/metropolitan-district-council/wolverhampton","720242","Woodcross and Manor Playgroup and Breakfast Club","NEF Spring 2019 INST 1","3,136.50","TPP - Private Nursery Education Funding","190553185","23/01/2019","Early Years","Early Years Universal Entitlement for 3 and 4 Year Olds","R5035"
"Wolverhampton City Council","http://opendatacommunities.org/id/metropolitan-district-council/wolverhampton","720273","Veronica House Ltd","P195823 03021920190114","3,932.60","TPP - Nursing Care - Long Term","190550396","16/01/2019","Older People Care Purchasing","OP Care Purchasing (Spot Placements)","R5410"
"Wolverhampton City Council","http://opendatacommunities.org/id/metropolitan-district-council/wolverhampton","720273","Veronica House Ltd","P195823 03021920190114","2,402.20","TPP - Nursing Care - Long Term","190550396","16/01/2019","Older People Care Purchasing","OP Care Purchasing (Spot Placements)","R5410"
"Wolverhampton City Council","http://opendatacommunities.org/id/metropolitan-district-council/wolverhampton","720276","Drive DeVilbiss Sidhil Limited","674821","551.49","Equipment - R & M","130236484","23/01/2019","Older People Provider Services","ILS Stores","R4003"
"Wolverhampton City Council","http://opendatacommunities.org/id/metropolitan-district-council/wolverhampton","720276","Drive DeVilbiss Sidhil Limited","674815","498.12","Equipment - R & M","130236479","23/01/2019","Older People Provider Services","ILS Stores","R4003"
"Wolverhampton City Council","http://opendatacommunities.org/id/metropolitan-district-council/wolverhampton","720276","Drive DeVilbiss Sidhil Limited","676644","302.43","Equipment - R & M","130238808","23/01/2019","Older People Provider Services","ILS Stores","R4003"
"Wolverhampton City Council","http://opendatacommunities.org/id/metropolitan-district-council/wolverhampton","720276","Drive DeVilbiss Sidhil Limited","674303","355.80","Equipment - R & M","130235624","23/01/2019","Older People Provider Services","ILS Stores","R4003"
"Wolverhampton City Council","http://opendatacommunities.org/id/metropolitan-district-council/wolverhampton","720276","Drive DeVilbiss Sidhil Limited","674615","135.80","Equipment - R & M","130236016","23/01/2019","Older People Provider Services","ILS Stores","R4003"
"Wolverhampton City Council","http://opendatacommunities.org/id/metropolitan-district-council/wolverhampton","720276","Drive DeVilbiss Sidhil Limited","674393","177.90","Equipment - R & M","130235625","23/01/2019","Older People Provider Services","ILS Stores","R4003"
"Wolverhampton City Council","http://opendatacommunities.org/id/metropolitan-district-council/wolverhampton","720276","Drive DeVilbiss Sidhil Limited","674807","142.32","Equipment - R & M","130236475","23/01/2019","Older People Provider Services","ILS Stores","R4003"
"Wolverhampton City Council","http://opendatacommunities.org/id/metropolitan-district-council/wolverhampton","720276","Drive DeVilbiss Sidhil Limited","676642","302.43","Equipment - R & M","130238807","23/01/2019","Older People Provider Services","ILS Stores","R4003"
"Wolverhampton City Council","http://opendatacommunities.org/id/metropolitan-district-council/wolverhampton","720276","Drive DeVilbiss Sidhil Limited","672909","676.02","Equipment - R & M","130233303","23/01/2019","Older People Provider Services","ILS Stores","R4003"
"Wolverhampton City Council","http://opendatacommunities.org/id/metropolitan-district-council/wolverhampton","720276","Drive DeVilbiss Sidhil Limited","674302","177.90","Equipment - R & M","130235623","23/01/2019","Older People Provider Services","ILS Stores","R4003"
"Wolverhampton City Council","http://opendatacommunities.org/id/metropolitan-district-council/wolverhampton","720276","Drive DeVilbiss Sidhil Limited","674822","426.96","Equipment - R & M","130236485","23/01/2019","Older People Provider Services","ILS Stores","R4003"
"Wolverhampton City Council","http://opendatacommunities.org/id/metropolitan-district-council/wolverhampton","720276","Drive DeVilbiss Sidhil Limited","674818","551.49","Equipment - R & M","130236481","23/01/2019","Older People Provider Services","ILS Stores","R4003"
"Wolverhampton City Council","http://opendatacommunities.org/id/metropolitan-district-council/wolverhampton","720276","Drive DeVilbiss Sidhil Limited","674819","551.49","Equipment - R & M","130236482","23/01/2019","Older People Provider Services","ILS Stores","R4003"
"Wolverhampton City Council","http://opendatacommunities.org/id/metropolitan-district-council/wolverhampton","720276","Drive DeVilbiss Sidhil Limited","672906","320.22","Equipment - R & M","130233301","23/01/2019","Older People Provider Services","ILS Stores","R4003"
"Wolverhampton City Council","http://opendatacommunities.org/id/metropolitan-district-council/wolverhampton","720276","Drive DeVilbiss Sidhil Limited","676640","177.90","Equipment - R & M","130238806","23/01/2019","Older People Provider Services","ILS Stores","R4003"
"Wolverhampton City Council","http://opendatacommunities.org/id/metropolitan-district-council/wolverhampton","720276","Drive DeVilbiss Sidhil Limited","672884","569.28","Equipment - R & M","130233293","23/01/2019","Older People Provider Services","ILS Stores","R4003"
"Wolverhampton City Council","http://opendatacommunities.org/id/metropolitan-district-council/wolverhampton","720276","Drive DeVilbiss Sidhil Limited","674301","177.90","Equipment - R & M","130235622","23/01/2019","Older People Provider Services","ILS Stores","R4003"
"Wolverhampton City Council","http://opendatacommunities.org/id/metropolitan-district-council/wolverhampton","720276","Drive DeVilbiss Sidhil Limited","674817","320.22","Equipment - R & M","130236480","23/01/2019","Older People Provider Services","ILS Stores","R4003"
"Wolverhampton City Council","http://opendatacommunities.org/id/metropolitan-district-council/wolverhampton","720276","Drive DeVilbiss Sidhil Limited","674820","551.49","Equipment - R & M","130236483","23/01/2019","Older People Provider Services","ILS Stores","R4003"
"Wolverhampton City Council","http://opendatacommunities.org/id/metropolitan-district-council/wolverhampton","720276","Drive DeVilbiss Sidhil Limited","676645","302.43","Equipment - R & M","130238809","23/01/2019","Older People Provider Services","ILS Stores","R4003"
"Wolverhampton City Council","http://opendatacommunities.org/id/metropolitan-district-council/wolverhampton","720276","Drive DeVilbiss Sidhil Limited","673727","177.90","Equipment - R & M","130234403","23/01/2019","Older People Provider Services","ILS Stores","R4003"
"Wolverhampton City Council","http://opendatacommunities.org/id/metropolitan-district-council/wolverhampton","720276","Drive DeVilbiss Sidhil Limited","674823","551.49","Equipment - R & M","130236486","23/01/2019","Older People Provider Services","ILS Stores","R4003"
"Wolverhampton City Council","http://opendatacommunities.org/id/metropolitan-district-council/wolverhampton","720276","Drive DeVilbiss Sidhil Limited","674810","95.06","Equipment - R & M","130236476","23/01/2019","Older People Provider Services","ILS Stores","R4003"
"Wolverhampton City Council","http://opendatacommunities.org/id/metropolitan-district-council/wolverhampton","720276","Drive DeVilbiss Sidhil Limited","674811","177.90","Equipment - R & M","130236477","23/01/2019","Older People Provider Services","ILS Stores","R4003"
"Wolverhampton City Council","http://opendatacommunities.org/id/metropolitan-district-council/wolverhampton","720282","Selecta UK Ltd (Was Pelican Rouge)","190042321","524.66","Provisions (Resale)","130237947","04/01/2019","Catering","Civic Centre Catering","R4102"
"Wolverhampton City Council","http://opendatacommunities.org/id/metropolitan-district-council/wolverhampton","720282","Selecta UK Ltd (Was Pelican Rouge)","190040901","42.19","Equipment - R & M","130238810","02/01/2019","Leisure Services","Bert Williams Leisure Centre Caf�","R4003"
"Wolverhampton City Council","http://opendatacommunities.org/id/metropolitan-district-council/wolverhampton","720301","Leanne Pugh","NEF Spring 2019 INST 1","459.00","TPP - Private Nursery Education Funding","190553185","23/01/2019","Early Years","Early Years Universal Entitlement for 3 and 4 Year Olds","R5035"
"Wolverhampton City Council","http://opendatacommunities.org/id/metropolitan-district-council/wolverhampton","720303","Acer Marketing Communications Ltd","1687","1,388.50","Marketing \ Non-staff advertising","130237562","02/01/2019","City Development","Blue Network (ERDF)","R4317"
"Wolverhampton City Council","http://opendatacommunities.org/id/metropolitan-district-council/wolverhampton","720328","3rings Care Limited","INV-1043","110.00","Equipment - Purchase","130239631","04/01/2019","Independent Living Service","Telecare","R4000"
"Wolverhampton City Council","http://opendatacommunities.org/id/metropolitan-district-council/wolverhampton","720330","LSD Promotions (Stall Hire) Limited","1060","700.00","Equipment - Purchase","130239791","09/01/2019","Markets","Wolverhampton Indoor and Open Market","R4000"
"Wolverhampton City Council","http://opendatacommunities.org/id/metropolitan-district-council/wolverhampton","720330","LSD Promotions (Stall Hire) Limited","1062","5,000.00","Services - General Licences","130239792","09/01/2019","Markets","Wolverhampton Indoor and Open Market","R4402"
"Wolverhampton City Council","http://opendatacommunities.org/id/metropolitan-district-council/wolverhampton","720397","B6 Squeaky Clean Ltd","1084 RE-ISSUE","525.00","Services - Professional Fees","130241833","30/01/2019","Visitor Economy","Christmas Festivities","R4400"
"Wolverhampton City Council","http://opendatacommunities.org/id/metropolitan-district-council/wolverhampton","720397","B6 Squeaky Clean Ltd","1084","630.00","Services - Professional Fees","130236017","30/01/2019","Visitor Economy","Christmas Festivities","R4400"
"Wolverhampton City Council","http://opendatacommunities.org/id/metropolitan-district-council/wolverhampton","720423","Lextox","106723","224.75","Services - Professional Fees","130239488","09/01/2019","Legal Services","Centralised External Legal Costs","R4400"
"Wolverhampton City Council","http://opendatacommunities.org/id/metropolitan-district-council/wolverhampton","720463","Jolly Jesters Inflatables International","02/2019","400.00","Equipment - Purchase","130241443","30/01/2019","Markets","Bilston Market and Licensed Operations","R4000"
"Wolverhampton City Council","http://opendatacommunities.org/id/metropolitan-district-council/wolverhampton","720478","Performance Health","INGB199431","226.60","Equipment - Purchase","130239037","16/01/2019","Older People Provider Services","ILS Stores","R4000"
"Wolverhampton City Council","http://opendatacommunities.org/id/metropolitan-district-council/wolverhampton","720478","Performance Health","INGB194969","205.00","Equipment - Purchase","130238073","09/01/2019","Older People Provider Services","ILS Stores","R4000"
"Wolverhampton City Council","http://opendatacommunities.org/id/metropolitan-district-council/wolverhampton","720478","Performance Health","INGB196698","199.00","Equipment - Purchase","130238520","09/01/2019","Older People Provider Services","ILS Stores","R4000"
"Wolverhampton City Council","http://opendatacommunities.org/id/metropolitan-district-council/wolverhampton","720521","Sable Leigh Consultancy","703","4,244.10","External Professional Fees","130240352","25/01/2019","-","GF - Interchange - Ph2 Train Station/MSCP/Metro Extension","C6002"
"Wolverhampton City Council","http://opendatacommunities.org/id/metropolitan-district-council/wolverhampton","720521","Sable Leigh Consultancy","624","9,625.00","External Professional Fees","130236320","11/01/2019","-","GF - Interchange - Ph2 Train Station/MSCP/Metro Extension","C6002"
"Wolverhampton City Council","http://opendatacommunities.org/id/metropolitan-district-council/wolverhampton","720523","Wood & Wood International Signs Ltd","88313","48,227.10","Construction and Conversion","130236322","09/01/2019","-","GF - Blue Network","C1100"
"Wolverhampton City Council","http://opendatacommunities.org/id/metropolitan-district-council/wolverhampton","720550","Grafityp UK Ltd","412543","438.38","Stationery","130237378","02/01/2019","ICTS","Document Centre - General","R4308"
"Wolverhampton City Council","http://opendatacommunities.org/id/metropolitan-district-council/wolverhampton","720564","Kier Construction Limited-Central","10131252","159,268.02","Construction and Conversion","130239632","16/01/2019","-","Primary Expansion Programme","C1100"
"Wolverhampton City Council","http://opendatacommunities.org/id/metropolitan-district-council/wolverhampton","720564","Kier Construction Limited-Central","10132516","196,513.73","Construction and Conversion","130240353","11/01/2019","-","Primary Expansion Programme","C1100"
"Wolverhampton City Council","http://opendatacommunities.org/id/metropolitan-district-council/wolverhampton","720582","Hereward College","P195737 03021920190114","29,832.54","TPP - Residential Care - Short Term","190550397","16/01/2019","Learning Disabilities Care Purchasing","LD Care Purchasing (Spot Placements)","R5401"
"Wolverhampton City Council","http://opendatacommunities.org/id/metropolitan-district-council/wolverhampton","720582","Hereward College","7080","7,743.58","TPP - Alternative Provision of Education","130238942","16/01/2019","Special Educational Needs","Post 16 SEN Provision","R5037"
"Wolverhampton City Council","http://opendatacommunities.org/id/metropolitan-district-council/wolverhampton","720582","Hereward College","6981","8,934.90","TPP - Alternative Provision of Education","130237949","02/01/2019","Special Educational Needs","Post 16 SEN Provision","R5037"
"Wolverhampton City Council","http://opendatacommunities.org/id/metropolitan-district-council/wolverhampton","720615","Orchard Children Homes Ltd","P195912 03021920190114","15,200.00","TPP - Residential Care - Long Term","190550154","16/01/2019","Children & Young People In Care","Out of City Placements","R5400"
"Wolverhampton City Council","http://opendatacommunities.org/id/metropolitan-district-council/wolverhampton","720633","The Grove Childminding","NEF Spring 2019 INST 1","382.50","TPP - Private Nursery Education Funding","190553185","23/01/2019","Early Years","Early Years Universal Entitlement for 3 and 4 Year Olds","R5035"
"Wolverhampton City Council","http://opendatacommunities.org/id/metropolitan-district-council/wolverhampton","720634","Nicola Allsebrook","NEF Spring 19 January","306.00","TPP - Private Nursery Education Funding","190553183","23/01/2019","Early Years","Early Years Universal Entitlement for 3 and 4 Year Olds","R5035"
"Wolverhampton City Council","http://opendatacommunities.org/id/metropolitan-district-council/wolverhampton","720649","Park Place Technologies Ltd","COMMI190115183","95.00","Computing - Consumables","130241612","25/01/2019","ICTS","Strategic ICTS (ICT Service Budget)","R4532"
"Wolverhampton City Council","http://opendatacommunities.org/id/metropolitan-district-council/wolverhampton","720649","Park Place Technologies Ltd","COMMI190115183","145.00","Computing - Consumables","130241612","25/01/2019","ICTS","Strategic ICTS (ICT Service Budget)","R4532"
"Wolverhampton City Council","http://opendatacommunities.org/id/metropolitan-district-council/wolverhampton","720649","Park Place Technologies Ltd","COMMI190115183","12.50","Computing - Consumables","130241612","25/01/2019","ICTS","Strategic ICTS (ICT Service Budget)","R4532"
"Wolverhampton City Council","http://opendatacommunities.org/id/metropolitan-district-council/wolverhampton","720649","Park Place Technologies Ltd","E28657M-002-I140472","7,200.00","Computing - Maint Agreements","130241819","25/01/2019","ICTS","Strategic ICTS (ICT Service Budget)","R4534"
"Wolverhampton City Council","http://opendatacommunities.org/id/metropolitan-district-council/wolverhampton","720663","D A Languages Ltd","I0178312","23.00","Services - Translation fees","130239804","30/01/2019","Strengthening Families","EI Area 6- Dovecotes","R4406"
"Wolverhampton City Council","http://opendatacommunities.org/id/metropolitan-district-council/wolverhampton","720663","D A Languages Ltd","I0178291","120.00","Services - Translation fees","130239640","30/01/2019","Waste and Recycling Service","Waste Collection and Recycling Service - General","R4406"
"Wolverhampton City Council","http://opendatacommunities.org/id/metropolitan-district-council/wolverhampton","720663","D A Languages Ltd","I0178333","46.00","Services - Translation fees","130239815","30/01/2019","Children & Young People In Care","Childrens with Disabilities Team","R4406"
"Wolverhampton City Council","http://opendatacommunities.org/id/metropolitan-district-council/wolverhampton","720663","D A Languages Ltd","I0178285","716.55","Services - Translation fees","130239636","30/01/2019","Children & Young People In Care","Childrens with Disabilities Team","R4406"
"Wolverhampton City Council","http://opendatacommunities.org/id/metropolitan-district-council/wolverhampton","720663","D A Languages Ltd","I0178316","92.00","Services - Translation fees","130239808","30/01/2019","Adults Assessment & Care Management North","Adult Services � North","R4406"
"Wolverhampton City Council","http://opendatacommunities.org/id/metropolitan-district-council/wolverhampton","720663","D A Languages Ltd","I0178307","101.60","Services - Translation fees","130239799","30/01/2019","Strengthening Families","EI Area 2- Bilston/Rocket pool","R4406"
"Wolverhampton City Council","http://opendatacommunities.org/id/metropolitan-district-council/wolverhampton","720663","D A Languages Ltd","I0178295","198.00","Services - Translation fees","130239644","30/01/2019","Governance Services","Scrutiny","R4406"
"Wolverhampton City Council","http://opendatacommunities.org/id/metropolitan-district-council/wolverhampton","720663","D A Languages Ltd","I0178294","240.00","Services - Translation fees","130242297","30/01/2019","Adults Assessment & Care Management East","Hospital Team","R4406"
"Wolverhampton City Council","http://opendatacommunities.org/id/metropolitan-district-council/wolverhampton","720663","D A Languages Ltd","I0178318","76.00","Services - Translation fees","130239810","30/01/2019","Adults Assessment & Care Management East","Adult Services � East","R4406"
"Wolverhampton City Council","http://opendatacommunities.org/id/metropolitan-district-council/wolverhampton","720663","D A Languages Ltd","I0178298","46.00","Services - Translation fees","130239646","30/01/2019","Inclusion Support","Inclusion Support","R4406"
"Wolverhampton City Council","http://opendatacommunities.org/id/metropolitan-district-council/wolverhampton","720663","D A Languages Ltd","I0178336","34.22","Services - Translation fees","130239817","30/01/2019","Public Service Reform","Electoral Registration","R4406"
"Wolverhampton City Council","http://opendatacommunities.org/id/metropolitan-district-council/wolverhampton","720663","D A Languages Ltd","I0178335","120.00","Services - Translation fees","130239816","30/01/2019","Special Educational Needs","SEND Reform Grant","R4406"
"Wolverhampton City Council","http://opendatacommunities.org/id/metropolitan-district-council/wolverhampton","720663","D A Languages Ltd","I0178296","1,013.53","Services - Translation fees","130239645","30/01/2019","Legal Services","Centralised External Legal Costs","R4406"
"Wolverhampton City Council","http://opendatacommunities.org/id/metropolitan-district-council/wolverhampton","720663","D A Languages Ltd","I0178287","228.00","Services - Translation fees","130239638","30/01/2019","Carer Support","Carers Support","R4406"
"Wolverhampton City Council","http://opendatacommunities.org/id/metropolitan-district-council/wolverhampton","720663","D A Languages Ltd","I0178284","29.00","Services - Translation fees","130239635","30/01/2019","Youth Offending","Youth Offending Team","R4406"
"Wolverhampton City Council","http://opendatacommunities.org/id/metropolitan-district-council/wolverhampton","720663","D A Languages Ltd","I0178305","193.96","Services - Translation fees","130239797","30/01/2019","Strengthening Families","MASH","R4406"
"Wolverhampton City Council","http://opendatacommunities.org/id/metropolitan-district-council/wolverhampton","720663","D A Languages Ltd","I0178311","216.44","Services - Translation fees","130239803","30/01/2019","Strengthening Families","EI Area 5 - Whitmore Reans","R4406"
"Wolverhampton City Council","http://opendatacommunities.org/id/metropolitan-district-council/wolverhampton","720663","D A Languages Ltd","I0177413","1.56","Services - Translation fees","130237251","02/01/2019","Strengthening Families","Court Team","R4406"
"Wolverhampton City Council","http://opendatacommunities.org/id/metropolitan-district-council/wolverhampton","720663","D A Languages Ltd","I0176706","177.08","Services - Translation fees","130237215","02/01/2019","Strengthening Families","EI Area 5 - Whitmore Reans","R4406"
"Wolverhampton City Council","http://opendatacommunities.org/id/metropolitan-district-council/wolverhampton","720663","D A Languages Ltd","I0176716","9.88","Services - Translation fees","130237218","02/01/2019","Strengthening Families","EI Area 8 -  Children�s Village","R4406"
"Wolverhampton City Council","http://opendatacommunities.org/id/metropolitan-district-council/wolverhampton","720663","D A Languages Ltd","I0176699","92.00","Services - Translation fees","130237212","02/01/2019","Adults Assessment & Care Management East","Hospital Team","R4406"
"Wolverhampton City Council","http://opendatacommunities.org/id/metropolitan-district-council/wolverhampton","720663","D A Languages Ltd","I0173275","6.24","Services - Translation fees","130230753","30/01/2019","Director of Education","SENDIASS","R4406"
"Wolverhampton City Council","http://opendatacommunities.org/id/metropolitan-district-council/wolverhampton","720663","D A Languages Ltd","I0178323","92.00","Services - Translation fees","130239814","30/01/2019","Strengthening Families","Court Team","R4406"
"Wolverhampton City Council","http://opendatacommunities.org/id/metropolitan-district-council/wolverhampton","720663","D A Languages Ltd","I0178293","13.00","Services - Translation fees","130239642","30/01/2019","Director of Education","SENDIASS","R4406"
"Wolverhampton City Council","http://opendatacommunities.org/id/metropolitan-district-council/wolverhampton","720663","D A Languages Ltd","I0178313","80.16","Services - Translation fees","130239805","30/01/2019","Strengthening Families","EI Area 7 - Low Hill","R4406"
"Wolverhampton City Council","http://opendatacommunities.org/id/metropolitan-district-council/wolverhampton","720663","D A Languages Ltd","I0178309","52.00","Services - Translation fees","130239801","30/01/2019","Strengthening Families","EI Area 3 - Graiseley","R4406"
"Wolverhampton City Council","http://opendatacommunities.org/id/metropolitan-district-council/wolverhampton","720663","D A Languages Ltd","I0178314","159.00","Services - Translation fees","130239806","30/01/2019","Strengthening Families","EI Area 8 -  Children�s Village","R4406"
"Wolverhampton City Council","http://opendatacommunities.org/id/metropolitan-district-council/wolverhampton","720663","D A Languages Ltd","I0178310","65.88","Services - Translation fees","130239802","30/01/2019","Strengthening Families","EI Area 4 - Bingley","R4406"
"Wolverhampton City Council","http://opendatacommunities.org/id/metropolitan-district-council/wolverhampton","720663","D A Languages Ltd","I0178322","138.00","Services - Translation fees","130239813","30/01/2019","Strengthening Families","Court Team","R4406"
"Wolverhampton City Council","http://opendatacommunities.org/id/metropolitan-district-council/wolverhampton","720663","D A Languages Ltd","I0178306","46.00","Services - Translation fees","130239798","30/01/2019","Strengthening Families","EI Area 1- Eastfield","R4406"
"Wolverhampton City Council","http://opendatacommunities.org/id/metropolitan-district-council/wolverhampton","720663","D A Languages Ltd","I0178334","30.00","Services - Translation fees","130241070","30/01/2019","Adults Assessment & Care Management East","Adult Services � East","R4406"
"Wolverhampton City Council","http://opendatacommunities.org/id/metropolitan-district-council/wolverhampton","720663","D A Languages Ltd","I0178317","46.00","Services - Translation fees","130239809","30/01/2019","Adults Assessment & Care Management West","Adult Services � West","R4406"
"Wolverhampton City Council","http://opendatacommunities.org/id/metropolitan-district-council/wolverhampton","720663","D A Languages Ltd","I0178320","112.52","Services - Translation fees","130239812","30/01/2019","Strengthening Families","Child Assessment Team","R4406"
"Wolverhampton City Council","http://opendatacommunities.org/id/metropolitan-district-council/wolverhampton","720663","D A Languages Ltd","I0178300","435.00","Services - Translation fees","130239794","30/01/2019","Strengthening Families","CP Area 4- Bingley","R4406"
"Wolverhampton City Council","http://opendatacommunities.org/id/metropolitan-district-council/wolverhampton","720663","D A Languages Ltd","I0178315","62.36","Services - Translation fees","130239807","30/01/2019","Specialist Support","Vulnerable Young Persons Team","R4406"
"Wolverhampton City Council","http://opendatacommunities.org/id/metropolitan-district-council/wolverhampton","720663","D A Languages Ltd","I0178308","252.28","Services - Translation fees","130239800","30/01/2019","Strengthening Families","EI Area 3 - Graiseley","R4406"
"Wolverhampton City Council","http://opendatacommunities.org/id/metropolitan-district-council/wolverhampton","720663","D A Languages Ltd","I0178301","267.16","Services - Translation fees","130239648","30/01/2019","Strengthening Families","CP Area 5-Whitemore Reans","R4406"
"Wolverhampton City Council","http://opendatacommunities.org/id/metropolitan-district-council/wolverhampton","720663","D A Languages Ltd","I0178283","344.32","Services - Translation fees","130239634","30/01/2019","Children & Young People In Care","LAC Transitions Team","R4406"
"Wolverhampton City Council","http://opendatacommunities.org/id/metropolitan-district-council/wolverhampton","720663","D A Languages Ltd","I0178292","46.00","Services - Translation fees","130239641","30/01/2019","Public Protection","Environmental Crime and Consumer Protection","R4406"
"Wolverhampton City Council","http://opendatacommunities.org/id/metropolitan-district-council/wolverhampton","720663","D A Languages Ltd","I0178299","69.00","Services - Translation fees","130239647","30/01/2019","Strengthening Families","CP Area 2 - Bilston/Rocket Pool","R4406"
"Wolverhampton City Council","http://opendatacommunities.org/id/metropolitan-district-council/wolverhampton","720663","D A Languages Ltd","I0178319","99.00","Services - Translation fees","130239811","30/01/2019","Strengthening Families","MASH","R4406"
"Wolverhampton City Council","http://opendatacommunities.org/id/metropolitan-district-council/wolverhampton","720663","D A Languages Ltd","I0169870","23.00","Services - Translation fees","130239633","09/01/2019","Safeguarding","MCA General","R4406"
"Wolverhampton City Council","http://opendatacommunities.org/id/metropolitan-district-council/wolverhampton","720663","D A Languages Ltd","I0176717","7.28","Services - Translation fees","130237219","02/01/2019","Director of Education","SENDIASS","R4406"
"Wolverhampton City Council","http://opendatacommunities.org/id/metropolitan-district-council/wolverhampton","720663","D A Languages Ltd","I0176897","120.00","Services - Translation fees","130237242","02/01/2019","Strengthening Families","EI Area 8 -  Children�s Village","R4406"
"Wolverhampton City Council","http://opendatacommunities.org/id/metropolitan-district-council/wolverhampton","720663","D A Languages Ltd","I0176903","23.00","Services - Translation fees","130237246","02/01/2019","Strengthening Families","EI Area 7 - Low Hill","R4406"
"Wolverhampton City Council","http://opendatacommunities.org/id/metropolitan-district-council/wolverhampton","720663","D A Languages Ltd","I0176683","428.92","Services - Translation fees","130237087","02/01/2019","Children & Young People In Care","Childrens with Disabilities Team","R4406"
"Wolverhampton City Council","http://opendatacommunities.org/id/metropolitan-district-council/wolverhampton","720663","D A Languages Ltd","I0176858","115.00","Services - Translation fees","130237233","02/01/2019","Adults Assessment & Care Management North","Adult Services � North","R4406"
"Wolverhampton City Council","http://opendatacommunities.org/id/metropolitan-district-council/wolverhampton","720663","D A Languages Ltd","I0176851","166.00","Services - Translation fees","130237595","02/01/2019","Strengthening Families","Child Assessment Team","R4406"
"Wolverhampton City Council","http://opendatacommunities.org/id/metropolitan-district-council/wolverhampton","720663","D A Languages Ltd","I0176864","184.00","Services - Translation fees","130237235","02/01/2019","Strengthening Families","CP Area 3 - Graiseley","R4406"
"Wolverhampton City Council","http://opendatacommunities.org/id/metropolitan-district-council/wolverhampton","720663","D A Languages Ltd","I0176722","127.36","Services - Translation fees","130237224","02/01/2019","Strengthening Families","CP Area 8 - Children�s Village","R4406"
"Wolverhampton City Council","http://opendatacommunities.org/id/metropolitan-district-council/wolverhampton","720663","D A Languages Ltd","I0176849","198.00","Services - Translation fees","130237230","02/01/2019","Children & Young People In Care","LAC Transitions Team","R4406"
"Wolverhampton City Council","http://opendatacommunities.org/id/metropolitan-district-council/wolverhampton","720663","D A Languages Ltd","I0176697","46.00","Services - Translation fees","130237091","02/01/2019","Strengthening Families","CP Area 3 - Graiseley","R4406"
"Wolverhampton City Council","http://opendatacommunities.org/id/metropolitan-district-council/wolverhampton","720663","D A Languages Ltd","I0176830","366.08","Services - Translation fees","130237227","02/01/2019","Strengthening Families","MASH","R4406"
"Wolverhampton City Council","http://opendatacommunities.org/id/metropolitan-district-council/wolverhampton","720663","D A Languages Ltd","I0176820","53.00","Services - Translation fees","130237593","02/01/2019","Strengthening Families","Court Team","R4406"
"Wolverhampton City Council","http://opendatacommunities.org/id/metropolitan-district-council/wolverhampton","720663","D A Languages Ltd","I0176878","106.00","Services - Translation fees","130237237","02/01/2019","Carer Support","Carers Support","R4406"
"Wolverhampton City Council","http://opendatacommunities.org/id/metropolitan-district-council/wolverhampton","720663","D A Languages Ltd","I0176900","60.00","Services - Translation fees","130237244","02/01/2019","Strengthening Families","EI Area 4 - Bingley","R4406"
"Wolverhampton City Council","http://opendatacommunities.org/id/metropolitan-district-council/wolverhampton","720663","D A Languages Ltd","I0176715","28.74","Services - Translation fees","130237217","02/01/2019","Legal Services","Centralised External Legal Costs","R4406"
"Wolverhampton City Council","http://opendatacommunities.org/id/metropolitan-district-council/wolverhampton","720663","D A Languages Ltd","I0176908","46.00","Services - Translation fees","130237249","02/01/2019","Strengthening Families","EI Area 7 - Low Hill","R4406"
"Wolverhampton City Council","http://opendatacommunities.org/id/metropolitan-district-council/wolverhampton","720663","D A Languages Ltd","I0176704","686.80","Services - Translation fees","130237213","02/01/2019","Children & Young People In Care","LAC Transitions Team","R4406"
"Wolverhampton City Council","http://opendatacommunities.org/id/metropolitan-district-council/wolverhampton","720663","D A Languages Ltd","I0176720","1.04","Services - Translation fees","130237222","02/01/2019","Strengthening Families","CP Area 4- Bingley","R4406"
"Wolverhampton City Council","http://opendatacommunities.org/id/metropolitan-district-council/wolverhampton","720663","D A Languages Ltd","I0176686","1,066.61","Services - Translation fees","130237089","02/01/2019","Strengthening Families","CP Area 4- Bingley","R4406"
"Wolverhampton City Council","http://opendatacommunities.org/id/metropolitan-district-council/wolverhampton","720663","D A Languages Ltd","I0176714","610.12","Services - Translation fees","130237216","02/01/2019","Strengthening Families","CP Area 7 - Low Hill","R4406"
"Wolverhampton City Council","http://opendatacommunities.org/id/metropolitan-district-council/wolverhampton","720663","D A Languages Ltd","I0176872","182.00","Services - Translation fees","130237236","02/01/2019","Strengthening Families","EI Area 8 -  Children�s Village","R4406"
"Wolverhampton City Council","http://opendatacommunities.org/id/metropolitan-district-council/wolverhampton","720663","D A Languages Ltd","I0176736","18.72","Services - Translation fees","130237225","02/01/2019","Strengthening Families","EI Area 7 - Low Hill","R4406"
"Wolverhampton City Council","http://opendatacommunities.org/id/metropolitan-district-council/wolverhampton","720663","D A Languages Ltd","I0176906","120.00","Services - Translation fees","130237248","02/01/2019","Adults Assessment & Care Management East","Adult Services � East","R4406"
"Wolverhampton City Council","http://opendatacommunities.org/id/metropolitan-district-council/wolverhampton","720663","D A Languages Ltd","I0176685","63.89","Services - Translation fees","130237088","02/01/2019","Legal Services","Centralised External Legal Costs","R4406"
"Wolverhampton City Council","http://opendatacommunities.org/id/metropolitan-district-council/wolverhampton","720663","D A Languages Ltd","I0176719","50.16","Services - Translation fees","130237221","02/01/2019","Adults Assessment & Care Management West","Adult Services � West","R4406"
"Wolverhampton City Council","http://opendatacommunities.org/id/metropolitan-district-council/wolverhampton","720663","D A Languages Ltd","I0176832","161.00","Services - Translation fees","130237229","02/01/2019","Strengthening Families","EI Area 3 - Graiseley","R4406"
"Wolverhampton City Council","http://opendatacommunities.org/id/metropolitan-district-council/wolverhampton","720663","D A Languages Ltd","I0176859","320.00","Services - Translation fees","130237234","02/01/2019","Adults Assessment & Care Management East","Adult Services � East","R4406"
"Wolverhampton City Council","http://opendatacommunities.org/id/metropolitan-district-council/wolverhampton","720663","D A Languages Ltd","I0176705","320.32","Services - Translation fees","130237214","02/01/2019","Strengthening Families","CP Area 5-Whitemore Reans","R4406"
"Wolverhampton City Council","http://opendatacommunities.org/id/metropolitan-district-council/wolverhampton","720663","D A Languages Ltd","I0176852","198.00","Services - Translation fees","130237232","02/01/2019","Governance Services","Scrutiny","R4406"
"Wolverhampton City Council","http://opendatacommunities.org/id/metropolitan-district-council/wolverhampton","720663","D A Languages Ltd","I0176907","25.25","Services - Translation fees","130239489","04/01/2019","Adults Assessment & Care Management West","Adult Services � West","R4406"
"Wolverhampton City Council","http://opendatacommunities.org/id/metropolitan-district-council/wolverhampton","720663","D A Languages Ltd","I0176907","20.75","Services - Translation fees","130239489","04/01/2019","Adults Assessment & Care Management West","Adult Services � West","R4406"
"Wolverhampton City Council","http://opendatacommunities.org/id/metropolitan-district-council/wolverhampton","720663","D A Languages Ltd","I0178303","666.88","Services - Translation fees","130239649","30/01/2019","Strengthening Families","CP Area 7 - Low Hill","R4406"
"Wolverhampton City Council","http://opendatacommunities.org/id/metropolitan-district-council/wolverhampton","720663","D A Languages Ltd","I0178302","273.16","Services - Translation fees","130239795","30/01/2019","Strengthening Families","CP Area 6 - Dovecotes","R4406"
"Wolverhampton City Council","http://opendatacommunities.org/id/metropolitan-district-council/wolverhampton","720663","D A Languages Ltd","CN-0020","-6.24","Services - Translation fees","130241328","30/01/2019","Director of Education","SENDIASS","R4406"
"Wolverhampton City Council","http://opendatacommunities.org/id/metropolitan-district-council/wolverhampton","720663","D A Languages Ltd","I0178304","258.40","Services - Translation fees","130239796","30/01/2019","Strengthening Families","CP Area 8 - Children�s Village","R4406"
"Wolverhampton City Council","http://opendatacommunities.org/id/metropolitan-district-council/wolverhampton","720663","D A Languages Ltd","I0176890","1,310.00","Services - Translation fees","130237238","16/01/2019","Waste and Recycling Service","Waste Collection and Recycling Service - General","R4406"
"Wolverhampton City Council","http://opendatacommunities.org/id/metropolitan-district-council/wolverhampton","720663","D A Languages Ltd","I0176850","60.00","Services - Translation fees","130239498","09/01/2019","Adult Education","Communication Studies","R4406"
"Wolverhampton City Council","http://opendatacommunities.org/id/metropolitan-district-council/wolverhampton","720663","D A Languages Ltd","I0176895","280.00","Services - Translation fees","130237241","18/01/2019","Governance Services","Equalities","R4406"
"Wolverhampton City Council","http://opendatacommunities.org/id/metropolitan-district-council/wolverhampton","720663","D A Languages Ltd","I0168076","23.00","Services - Translation fees","130239793","09/01/2019","Strengthening Families","CP Area 3 - Graiseley","R4406"
"Wolverhampton City Council","http://opendatacommunities.org/id/metropolitan-district-council/wolverhampton","720663","D A Languages Ltd","I0176694","15.00","Services - Translation fees","130237090","02/01/2019","Legal Services","Centralised External Legal Costs","R4406"
"Wolverhampton City Council","http://opendatacommunities.org/id/metropolitan-district-council/wolverhampton","720663","D A Languages Ltd","I0176894","92.00","Services - Translation fees","130237240","02/01/2019","Adults Assessment and Care Management MASH","Adult MASH","R4406"
"Wolverhampton City Council","http://opendatacommunities.org/id/metropolitan-district-council/wolverhampton","720663","D A Languages Ltd","I0176721","373.44","Services - Translation fees","130237223","02/01/2019","Strengthening Families","CP Area 6 - Dovecotes","R4406"
"Wolverhampton City Council","http://opendatacommunities.org/id/metropolitan-district-council/wolverhampton","720663","D A Languages Ltd","I0176909","120.00","Services - Translation fees","130237250","02/01/2019","Strategic Commissioning","Commissioning Disabilities","R4406"
"Wolverhampton City Council","http://opendatacommunities.org/id/metropolitan-district-council/wolverhampton","720663","D A Languages Ltd","I0176831","69.00","Services - Translation fees","130237594","02/01/2019","Public Protection","Environmental Crime and Consumer Protection","R4406"
"Wolverhampton City Council","http://opendatacommunities.org/id/metropolitan-district-council/wolverhampton","720663","D A Languages Ltd","I0176901","23.00","Services - Translation fees","130237245","02/01/2019","Adults Assessment & Care Management East","Hospital Team","R4406"
"Wolverhampton City Council","http://opendatacommunities.org/id/metropolitan-district-council/wolverhampton","720663","D A Languages Ltd","I0176899","23.00","Services - Translation fees","130237243","02/01/2019","Children & Young People In Care","Looked After Team 1","R4406"
"Wolverhampton City Council","http://opendatacommunities.org/id/metropolitan-district-council/wolverhampton","720663","D A Languages Ltd","I0176681","320.01","Services - Translation fees","130237588","02/01/2019","Public Protection","Environmental Crime and Consumer Protection","R4406"
"Wolverhampton City Council","http://opendatacommunities.org/id/metropolitan-district-council/wolverhampton","720663","D A Languages Ltd","I0176891","0.01","Services - Translation fees","130237596","02/01/2019","Adults Assessment & Care Management West","Adult Services � West","R4406"
"Wolverhampton City Council","http://opendatacommunities.org/id/metropolitan-district-council/wolverhampton","720663","D A Languages Ltd","I0176891","160.94","Services - Translation fees","130237596","02/01/2019","Adults Assessment & Care Management West","Adult Services � West","R4406"
"Wolverhampton City Council","http://opendatacommunities.org/id/metropolitan-district-council/wolverhampton","720663","D A Languages Ltd","I0176891","0.05","Services - Translation fees","130237596","02/01/2019","Adults Assessment & Care Management West","Adult Services � West","R4406"
"Wolverhampton City Council","http://opendatacommunities.org/id/metropolitan-district-council/wolverhampton","720733","My Local Window Cleaners Limited","Q1045","50.00","Window Cleaning","130240858","18/01/2019","Strengthening Families","EI Area 5 - Whitmore Reans","R2701"
"Wolverhampton City Council","http://opendatacommunities.org/id/metropolitan-district-council/wolverhampton","720761","Revelan UK Limited","1051904","13,750.00","Rent","190548065","09/01/2019","Independent Living Service","Independent Living Service","R2200"
"Wolverhampton City Council","http://opendatacommunities.org/id/metropolitan-district-council/wolverhampton","720765","ERG","121092","3,406.20","Services - Professional Fees","130242092","30/01/2019","Strengthening Families","CP Area 2 - Bilston/Rocket Pool","R4400"
"Wolverhampton City Council","http://opendatacommunities.org/id/metropolitan-district-council/wolverhampton","720813","Jayne Pitcher","NEF Spring 19 January","306.00","TPP - Private Nursery Education Funding","190553183","23/01/2019","Early Years","Early Years Universal Entitlement for 3 and 4 Year Olds","R5035"
"Wolverhampton City Council","http://opendatacommunities.org/id/metropolitan-district-council/wolverhampton","720846","Great Western Hospital NHS ft","16980347 GUM Aug 18","135.34","TPP - Public Health Contracts","190548624","11/01/2019","Starting and Developing Well","Sexual Health","R5060"
"Wolverhampton City Council","http://opendatacommunities.org/id/metropolitan-district-council/wolverhampton","720846","Great Western Hospital NHS ft","16979967 GUM July 18","135.34","TPP - Public Health Contracts","190548625","11/01/2019","Starting and Developing Well","Sexual Health","R5060"
"Wolverhampton City Council","http://opendatacommunities.org/id/metropolitan-district-council/wolverhampton","720867","C M Davies Ltd","LL181031","500.00","Client Transport","130234100","09/01/2019","Children & Young People In Care","Childrens with Disabilities Team","R3042"
"Wolverhampton City Council","http://opendatacommunities.org/id/metropolitan-district-council/wolverhampton","720867","C M Davies Ltd","LL181130","400.00","Client Transport","130237767","09/01/2019","Children & Young People In Care","Childrens with Disabilities Team","R3042"
"Wolverhampton City Council","http://opendatacommunities.org/id/metropolitan-district-council/wolverhampton","720901","Paul Eggett Limited","1602","4,848.10","Services - Professional Fees","130239818","30/01/2019","Legal Services","Centralised External Legal Costs","R4400"
"Wolverhampton City Council","http://opendatacommunities.org/id/metropolitan-district-council/wolverhampton","720901","Paul Eggett Limited","1597","1,708.00","Services - Professional Fees","130238811","02/01/2019","Legal Services","Centralised External Legal Costs","R4400"
"Wolverhampton City Council","http://opendatacommunities.org/id/metropolitan-district-council/wolverhampton","720904","NTA Monitor Ltd","18750","1,750.00","Services - Professional Fees","130238074","11/01/2019","Digital Transformation Programme","Digital Transformation Programme","R4400"
"Wolverhampton City Council","http://opendatacommunities.org/id/metropolitan-district-council/wolverhampton","720904","NTA Monitor Ltd","18689","1,750.00","Services - Professional Fees","130236936","11/01/2019","Digital Transformation Programme","Digital Transformation Programme","R4400"
"Wolverhampton City Council","http://opendatacommunities.org/id/metropolitan-district-council/wolverhampton","720939","Creative-Connections","035","862.50","Direct Work With Children","130239269","25/01/2019","Children & Young People In Care","Adoption Support Fund","R6310"
"Wolverhampton City Council","http://opendatacommunities.org/id/metropolitan-district-council/wolverhampton","720939","Creative-Connections","036","526.50","Direct Work With Children","130239270","25/01/2019","Children & Young People In Care","Adoption and Residence Team & Allowances","R6310"
"Wolverhampton City Council","http://opendatacommunities.org/id/metropolitan-district-council/wolverhampton","720974","Taz Lovejoy","0032","528.50","Services - Professional Fees","130238240","09/01/2019","Visitor Economy","Technical Support - ACE NPO WAG","R4400"
"Wolverhampton City Council","http://opendatacommunities.org/id/metropolitan-district-council/wolverhampton","720999","Excel Tail Lift Services Limited","10918","60.00","Services - Professional Fees","190555457","30/01/2019","Fleet Services","Fleet Management","R4400"
"Wolverhampton City Council","http://opendatacommunities.org/id/metropolitan-district-council/wolverhampton","720999","Excel Tail Lift Services Limited","10918","60.00","Services - Professional Fees","190555457","30/01/2019","Fleet Services","Fleet Management","R4400"
"Wolverhampton City Council","http://opendatacommunities.org/id/metropolitan-district-council/wolverhampton","720999","Excel Tail Lift Services Limited","10918","60.00","Services - Professional Fees","190555457","30/01/2019","Fleet Services","Fleet Management","R4400"
"Wolverhampton City Council","http://opendatacommunities.org/id/metropolitan-district-council/wolverhampton","720999","Excel Tail Lift Services Limited","10918","60.00","Services - Professional Fees","190555457","30/01/2019","Fleet Services","Fleet Management","R4400"
"Wolverhampton City Council","http://opendatacommunities.org/id/metropolitan-district-council/wolverhampton","720999","Excel Tail Lift Services Limited","10918","60.00","Services - Professional Fees","190555457","30/01/2019","Fleet Services","Fleet Management","R4400"
"Wolverhampton City Council","http://opendatacommunities.org/id/metropolitan-district-council/wolverhampton","720999","Excel Tail Lift Services Limited","10918","60.00","Services - Professional Fees","190555457","30/01/2019","Fleet Services","Fleet Management","R4400"
"Wolverhampton City Council","http://opendatacommunities.org/id/metropolitan-district-council/wolverhampton","720999","Excel Tail Lift Services Limited","10918","60.00","Services - Professional Fees","190555457","30/01/2019","Fleet Services","Fleet Management","R4400"
"Wolverhampton City Council","http://opendatacommunities.org/id/metropolitan-district-council/wolverhampton","720999","Excel Tail Lift Services Limited","10918","60.00","Services - Professional Fees","190555457","30/01/2019","Fleet Services","Fleet Management","R4400"
"Wolverhampton City Council","http://opendatacommunities.org/id/metropolitan-district-council/wolverhampton","720999","Excel Tail Lift Services Limited","10918","60.00","Services - Professional Fees","190555457","30/01/2019","Fleet Services","Fleet Management","R4400"
"Wolverhampton City Council","http://opendatacommunities.org/id/metropolitan-district-council/wolverhampton","720999","Excel Tail Lift Services Limited","10918","60.00","Services - Professional Fees","190555457","30/01/2019","Fleet Services","Fleet Management","R4400"
"Wolverhampton City Council","http://opendatacommunities.org/id/metropolitan-district-council/wolverhampton","720999","Excel Tail Lift Services Limited","10918","60.00","Services - Professional Fees","190555457","30/01/2019","Fleet Services","Fleet Management","R4400"
"Wolverhampton City Council","http://opendatacommunities.org/id/metropolitan-district-council/wolverhampton","720999","Excel Tail Lift Services Limited","10918","60.00","Services - Professional Fees","190555457","30/01/2019","Fleet Services","Fleet Management","R4400"
"Wolverhampton City Council","http://opendatacommunities.org/id/metropolitan-district-council/wolverhampton","720999","Excel Tail Lift Services Limited","10918","60.00","Services - Professional Fees","190555457","30/01/2019","Fleet Services","Fleet Management","R4400"
"Wolverhampton City Council","http://opendatacommunities.org/id/metropolitan-district-council/wolverhampton","720999","Excel Tail Lift Services Limited","10918","60.00","Services - Professional Fees","190555457","30/01/2019","Fleet Services","Fleet Management","R4400"
"Wolverhampton City Council","http://opendatacommunities.org/id/metropolitan-district-council/wolverhampton","720999","Excel Tail Lift Services Limited","10918","60.00","Services - Professional Fees","190555457","30/01/2019","Fleet Services","Fleet Management","R4400"
"Wolverhampton City Council","http://opendatacommunities.org/id/metropolitan-district-council/wolverhampton","720999","Excel Tail Lift Services Limited","10918","60.00","Services - Professional Fees","190555457","30/01/2019","Fleet Services","Fleet Management","R4400"
"Wolverhampton City Council","http://opendatacommunities.org/id/metropolitan-district-council/wolverhampton","720999","Excel Tail Lift Services Limited","10918","60.00","Services - Professional Fees","190555457","30/01/2019","Fleet Services","Fleet Management","R4400"
"Wolverhampton City Council","http://opendatacommunities.org/id/metropolitan-district-council/wolverhampton","720999","Excel Tail Lift Services Limited","10918","60.00","Services - Professional Fees","190555457","30/01/2019","Fleet Services","Fleet Management","R4400"
"Wolverhampton City Council","http://opendatacommunities.org/id/metropolitan-district-council/wolverhampton","720999","Excel Tail Lift Services Limited","10918","60.00","Services - Professional Fees","190555457","30/01/2019","Fleet Services","Fleet Management","R4400"
"Wolverhampton City Council","http://opendatacommunities.org/id/metropolitan-district-council/wolverhampton","720999","Excel Tail Lift Services Limited","10918","60.00","Services - Professional Fees","190555457","30/01/2019","Fleet Services","Fleet Management","R4400"
"Wolverhampton City Council","http://opendatacommunities.org/id/metropolitan-district-council/wolverhampton","721015","Hill & Smith Ltd T/A Variable Message Signs","111103","1,095.00","Construction and Conversion","130238944","09/01/2019","-","Integrated Transport","C1100"
"Wolverhampton City Council","http://opendatacommunities.org/id/metropolitan-district-council/wolverhampton","721060","Voice 2 Voice Ltd","53851","3,230.53","Comms - Telephone Rental","130240602","25/01/2019","ICTS","Strategic ICTS (ICT Service Budget)","R4504"
"Wolverhampton City Council","http://opendatacommunities.org/id/metropolitan-district-council/wolverhampton","721060","Voice 2 Voice Ltd","53418","3,125.99","Comms - Telephone Rental","130237769","23/01/2019","ICTS","Strategic ICTS (ICT Service Budget)","R4504"
"Wolverhampton City Council","http://opendatacommunities.org/id/metropolitan-district-council/wolverhampton","721087","Transervice Training Ltd","732","225.00","Training Expenses","130238722","09/01/2019","Skills","IMPACT","R1650"
"Wolverhampton City Council","http://opendatacommunities.org/id/metropolitan-district-council/wolverhampton","721087","Transervice Training Ltd","732","133.00","Training Expenses","130238722","09/01/2019","Skills","IMPACT","R1650"
"Wolverhampton City Council","http://opendatacommunities.org/id/metropolitan-district-council/wolverhampton","721087","Transervice Training Ltd","733","225.00","Training Expenses","130238723","09/01/2019","Skills","IMPACT","R1650"
"Wolverhampton City Council","http://opendatacommunities.org/id/metropolitan-district-council/wolverhampton","721087","Transervice Training Ltd","733","133.00","Training Expenses","130238723","09/01/2019","Skills","IMPACT","R1650"
"Wolverhampton City Council","http://opendatacommunities.org/id/metropolitan-district-council/wolverhampton","721116","Sanders Wright and Freeman","MJH/R791(4C)","97.81","No Recourse to Public Funds","130236600","16/01/2019","Strengthening Families","CP Area 5-Whitemore Reans","R6314"
"Wolverhampton City Council","http://opendatacommunities.org/id/metropolitan-district-council/wolverhampton","721153","PPL PRS Ltd","SIN818723","181.82","Services - General Licences","130240605","16/01/2019","Skills","Connexions Contract","R4402"
"Wolverhampton City Council","http://opendatacommunities.org/id/metropolitan-district-council/wolverhampton","721153","PPL PRS Ltd","SIN841379","714.69","Services - Fees and Charges","130240038","09/01/2019","Visitor Economy","The Little Civic","R4401"
"Wolverhampton City Council","http://opendatacommunities.org/id/metropolitan-district-council/wolverhampton","721153","PPL PRS Ltd","SIN750171","5,092.40","Services - General Licences","130240604","16/01/2019","Leisure Services","Central Baths","R4402"
"Wolverhampton City Council","http://opendatacommunities.org/id/metropolitan-district-council/wolverhampton","721153","PPL PRS Ltd","SIN716267","5,008.84","Services - General Licences","130240603","18/01/2019","Leisure Services","Aldersley Leisure Village","R4402"
"Wolverhampton City Council","http://opendatacommunities.org/id/metropolitan-district-council/wolverhampton","721197","GYMIX� -  GymRadio","1670","150.00","Equipment - Purchase","130220613","09/01/2019","Leisure Services","Central Baths","R4000"
"Wolverhampton City Council","http://opendatacommunities.org/id/metropolitan-district-council/wolverhampton","721197","GYMIX� -  GymRadio","1670","50.00","Equipment - Purchase","130220613","09/01/2019","Leisure Services","Bert Williams Leisure Centre","R4000"
"Wolverhampton City Council","http://opendatacommunities.org/id/metropolitan-district-council/wolverhampton","721197","GYMIX� -  GymRadio","1670","-50.00","Equipment - Purchase","130220613","09/01/2019","Leisure Services","Aldersley Leisure Village","R4000"
"Wolverhampton City Council","http://opendatacommunities.org/id/metropolitan-district-council/wolverhampton","721218","Bradley Builders","16/0775/DFGb","9,259.50","Grants paid out to other organisations","190553907","23/01/2019","-","Disabled Facilities Grants","C5011"
"Wolverhampton City Council","http://opendatacommunities.org/id/metropolitan-district-council/wolverhampton","721223","WCS Group Limited","MD111914","358.33","R&M - Departmental planned (external)","130238521","09/01/2019","Maintenance Programme","Civic Centre Repairs & Maintenance","R2001"
"Wolverhampton City Council","http://opendatacommunities.org/id/metropolitan-district-council/wolverhampton","721223","WCS Group Limited","MD104732","358.33","R&M - Departmental planned (external)","130239038","04/01/2019","Maintenance Programme","Civic Centre Repairs & Maintenance","R2001"
"Wolverhampton City Council","http://opendatacommunities.org/id/metropolitan-district-council/wolverhampton","721223","WCS Group Limited","MD105162","260.00","R&M - Departmental planned (external)","130239039","04/01/2019","Maintenance Programme","Centralised R&M","R2001"
"Wolverhampton City Council","http://opendatacommunities.org/id/metropolitan-district-council/wolverhampton","721229","Frontier Therapeutics Limited","453272","495.00","Equipment - Purchase","130239820","25/01/2019","Older People Provider Services","ILS Stores","R4000"
"Wolverhampton City Council","http://opendatacommunities.org/id/metropolitan-district-council/wolverhampton","721229","Frontier Therapeutics Limited","453272","45.00","Comms - Postage","130239820","25/01/2019","Older People Provider Services","ILS Stores","R4503"
"Wolverhampton City Council","http://opendatacommunities.org/id/metropolitan-district-council/wolverhampton","721229","Frontier Therapeutics Limited","453021","157.50","Equipment - R & M","130237951","04/01/2019","Older People Provider Services","ILS Stores","R4003"
"Wolverhampton City Council","http://opendatacommunities.org/id/metropolitan-district-council/wolverhampton","721255","PA HOUSING","2000981","682.50","Services - Translation fees","130239164","04/01/2019","Independent Living Service","Telecare","R4406"
"Wolverhampton City Council","http://opendatacommunities.org/id/metropolitan-district-council/wolverhampton","721255","PA HOUSING","2000820","689.00","Services - Translation fees","130239162","04/01/2019","Independent Living Service","Telecare","R4406"
"Wolverhampton City Council","http://opendatacommunities.org/id/metropolitan-district-council/wolverhampton","721255","PA HOUSING","2000818","695.50","Services - Translation fees","130239160","04/01/2019","Independent Living Service","Telecare","R4406"
"Wolverhampton City Council","http://opendatacommunities.org/id/metropolitan-district-council/wolverhampton","721255","PA HOUSING","2000819","695.50","Services - Translation fees","130239161","04/01/2019","Independent Living Service","Telecare","R4406"
"Wolverhampton City Council","http://opendatacommunities.org/id/metropolitan-district-council/wolverhampton","721255","PA HOUSING","2000980","689.00","Services - Translation fees","130239163","04/01/2019","Independent Living Service","Telecare","R4406"
"Wolverhampton City Council","http://opendatacommunities.org/id/metropolitan-district-council/wolverhampton","721255","PA HOUSING","2000982","682.50","Services - Translation fees","130239165","04/01/2019","Independent Living Service","Telecare","R4406"
"Wolverhampton City Council","http://opendatacommunities.org/id/metropolitan-district-council/wolverhampton","721271","Bowmer and Kirkland","H640112","650,062.51","Construction and Conversion","130239650","23/01/2019","-","Primary Expansion Programme","C1100"
"Wolverhampton City Council","http://opendatacommunities.org/id/metropolitan-district-council/wolverhampton","721281","Play N Learn Nursery","TFT Spring 2019 Inst 1","2,735.28","TPP - Private Nursery Education Funding","190553192","23/01/2019","Early Years","Early Years Entitlement Funding for Disadvantaged 2 Year Olds","R5035"
"Wolverhampton City Council","http://opendatacommunities.org/id/metropolitan-district-council/wolverhampton","721281","Play N Learn Nursery","NEF Spring 2019 INST 1","1,836.00","TPP - Private Nursery Education Funding","190553185","23/01/2019","Early Years","Early Years Universal Entitlement for 3 and 4 Year Olds","R5035"
"Wolverhampton City Council","http://opendatacommunities.org/id/metropolitan-district-council/wolverhampton","721292","RTC Medical Solutions Ltd","SI-1257","900.00","Services - Professional Fees","130240860","16/01/2019","Visitor Economy","Diwali","R4400"
"Wolverhampton City Council","http://opendatacommunities.org/id/metropolitan-district-council/wolverhampton","721292","RTC Medical Solutions Ltd","SI-1258","2,200.00","Services - Professional Fees","130240861","16/01/2019","Visitor Economy","Bonfire","R4400"
"Wolverhampton City Council","http://opendatacommunities.org/id/metropolitan-district-council/wolverhampton","721292","RTC Medical Solutions Ltd","SI-1256","1,500.00","Services - Professional Fees","130241329","25/01/2019","Visitor Economy","Christmas Festivities","R4400"
"Wolverhampton City Council","http://opendatacommunities.org/id/metropolitan-district-council/wolverhampton","721295","Briars Associates","DEC4288","149.00","Services - Professional Fees","130239490","04/01/2019","Corporate Asset Management","Energy Management","R4400"
"Wolverhampton City Council","http://opendatacommunities.org/id/metropolitan-district-council/wolverhampton","721299","Emma Bowen","BILST-06","225.00","Services - Professional Fees","130238724","16/01/2019","Visitor Economy","Early Years -  ACE NPO WAG","R4400"
"Wolverhampton City Council","http://opendatacommunities.org/id/metropolitan-district-council/wolverhampton","721328","Karen Stone Consultancy Limited","378","1,650.00","Training Expenses","130236940","02/01/2019","Public Service Reform","Workforce Development","R1650"
"Wolverhampton City Council","http://opendatacommunities.org/id/metropolitan-district-council/wolverhampton","721342","Blossom Social Care Training","000124","165.00","Direct Work With Children","130237770","04/01/2019","Children & Young People In Care","Adoption Support Fund","R6310"
"Wolverhampton City Council","http://opendatacommunities.org/id/metropolitan-district-council/wolverhampton","721382","EGS Group Limited","EGS_TSI5700336","35,000.00","Computing - Licences","130241073","18/01/2019","The Hub","Payments Team","R4535"
"Wolverhampton City Council","http://opendatacommunities.org/id/metropolitan-district-council/wolverhampton","721407","Walsall Council - Leisure Services","700841","73,162.83","TPP - Payments to Local Authorities","130241330","23/01/2019","Waste and Recycling Service","Waste Disposal - General","R5100"
"Wolverhampton City Council","http://opendatacommunities.org/id/metropolitan-district-council/wolverhampton","721459","Youthlinx Ltd","P19489120181231","5,700.00","Client Allowances","190545561","02/01/2019","Children & Young People In Care","Out of City - Pooled Budget","R6301"
"Wolverhampton City Council","http://opendatacommunities.org/id/metropolitan-district-council/wolverhampton","721459","Youthlinx Ltd","P19506420190107","5,700.00","Client Allowances","190547221","09/01/2019","Children & Young People In Care","Out of City - Pooled Budget","R6301"
"Wolverhampton City Council","http://opendatacommunities.org/id/metropolitan-district-council/wolverhampton","721459","Youthlinx Ltd","P19566520190111","5,700.00","Client Allowances","190549640","16/01/2019","Children & Young People In Care","Out of City - Pooled Budget","R6301"
"Wolverhampton City Council","http://opendatacommunities.org/id/metropolitan-district-council/wolverhampton","721477","Swarco Traffic Ltd","90012270","292.11","Equipment - R & M","130237953","11/01/2019","Operation & Maintenance of Existing Network","UTC Dudley","R4003"
"Wolverhampton City Council","http://opendatacommunities.org/id/metropolitan-district-council/wolverhampton","721477","Swarco Traffic Ltd","90012272","1,927.95","Equipment - R & M","130237955","11/01/2019","Operation & Maintenance of Existing Network","UTC Wolverhampton","R4003"
"Wolverhampton City Council","http://opendatacommunities.org/id/metropolitan-district-council/wolverhampton","721477","Swarco Traffic Ltd","90012329","7,672.35","Equipment - R & M","130238077","11/01/2019","Operation & Maintenance of Existing Network","Walsall Recovery Costs","R4003"
"Wolverhampton City Council","http://opendatacommunities.org/id/metropolitan-district-council/wolverhampton","721477","Swarco Traffic Ltd","90012328","1,168.45","Equipment - R & M","130238076","11/01/2019","Operation & Maintenance of Existing Network","UTC Dudley","R4003"
"Wolverhampton City Council","http://opendatacommunities.org/id/metropolitan-district-council/wolverhampton","721477","Swarco Traffic Ltd","90012257","819.45","Equipment - R & M","130236944","11/01/2019","Operation & Maintenance of Existing Network","UTC Wolverhampton","R4003"
"Wolverhampton City Council","http://opendatacommunities.org/id/metropolitan-district-council/wolverhampton","721477","Swarco Traffic Ltd","90012259","1,918.09","Equipment - R & M","130236946","11/01/2019","Operation & Maintenance of Existing Network","Walsall Recovery Costs","R4003"
"Wolverhampton City Council","http://opendatacommunities.org/id/metropolitan-district-council/wolverhampton","721477","Swarco Traffic Ltd","90012299","12,795.33","Plant, Equipment, Machinery & Computer Hardware","130237956","11/01/2019","-","Integrated Transport","C3000"
"Wolverhampton City Council","http://opendatacommunities.org/id/metropolitan-district-council/wolverhampton","721477","Swarco Traffic Ltd","90012258","292.11","Equipment - R & M","130236945","11/01/2019","Operation & Maintenance of Existing Network","UTC Dudley","R4003"
"Wolverhampton City Council","http://opendatacommunities.org/id/metropolitan-district-council/wolverhampton","721477","Swarco Traffic Ltd","90012260","1,927.95","Equipment - R & M","130236947","11/01/2019","Operation & Maintenance of Existing Network","UTC Wolverhampton","R4003"
"Wolverhampton City Council","http://opendatacommunities.org/id/metropolitan-district-council/wolverhampton","721477","Swarco Traffic Ltd","90012330","7,711.77","Equipment - R & M","130238078","11/01/2019","Operation & Maintenance of Existing Network","UTC Wolverhampton","R4003"
"Wolverhampton City Council","http://opendatacommunities.org/id/metropolitan-district-council/wolverhampton","721477","Swarco Traffic Ltd","90012269","819.45","Equipment - R & M","130237952","11/01/2019","Operation & Maintenance of Existing Network","UTC Wolverhampton","R4003"
"Wolverhampton City Council","http://opendatacommunities.org/id/metropolitan-district-council/wolverhampton","721477","Swarco Traffic Ltd","90012271","1,918.09","Equipment - R & M","130237954","11/01/2019","Operation & Maintenance of Existing Network","Walsall Recovery Costs","R4003"
"Wolverhampton City Council","http://opendatacommunities.org/id/metropolitan-district-council/wolverhampton","721477","Swarco Traffic Ltd","90012327","3,277.79","Equipment - R & M","130238075","11/01/2019","Operation & Maintenance of Existing Network","UTC Wolverhampton","R4003"
"Wolverhampton City Council","http://opendatacommunities.org/id/metropolitan-district-council/wolverhampton","721502","Paul James Promotions Ltd","2165","500.00","Marketing \ Non-staff advertising","130237771","04/01/2019","Corporate Communications","Communications & Marketing - General","R4317"
"Wolverhampton City Council","http://opendatacommunities.org/id/metropolitan-district-council/wolverhampton","721505","Severn Trent Searches - Property Solutions","OP/I088052","490.00","Services - Fees and Charges","130241331","25/01/2019","Legal Services","Centralised External Legal Costs","R4401"
"Wolverhampton City Council","http://opendatacommunities.org/id/metropolitan-district-council/wolverhampton","721546","Little Bundles of Joy","0025","540.00","TPP - Child Care provided for client","130239821","16/01/2019","Adult Education","Discretionary Fund","R5034"
"Wolverhampton City Council","http://opendatacommunities.org/id/metropolitan-district-council/wolverhampton","721546","Little Bundles of Joy","0029","540.00","TPP - Child Care provided for client","130239651","09/01/2019","Adult Education","Discretionary Fund","R5034"
"Wolverhampton City Council","http://opendatacommunities.org/id/metropolitan-district-council/wolverhampton","721546","Little Bundles of Joy","TFT Spring 2019 Inst 1","6,225.12","TPP - Private Nursery Education Funding","190553192","23/01/2019","Early Years","Early Years Entitlement Funding for Disadvantaged 2 Year Olds","R5035"
"Wolverhampton City Council","http://opendatacommunities.org/id/metropolitan-district-council/wolverhampton","721546","Little Bundles of Joy","NEF Spring 2019 INST 1","2,754.00","TPP - Private Nursery Education Funding","190553185","23/01/2019","Early Years","Early Years Universal Entitlement for 3 and 4 Year Olds","R5035"
"Wolverhampton City Council","http://opendatacommunities.org/id/metropolitan-district-council/wolverhampton","721579","Azaad Arts","AA-008","519.64","Services - Professional Fees","130237772","04/01/2019","School Planning & Resources","Music Support Team","R4400"
"Wolverhampton City Council","http://opendatacommunities.org/id/metropolitan-district-council/wolverhampton","721595","Chrysalis Associates Ltd","316","2,500.00","Direct Work With Children","130238727","11/01/2019","Children & Young People In Care","Adoption Support Fund","R6310"
"Wolverhampton City Council","http://opendatacommunities.org/id/metropolitan-district-council/wolverhampton","721601","Topaz Therapeutic Life Story Practice","121","818.75","Direct Work With Children","130240606","23/01/2019","Children & Young People In Care","Adoption Support Fund","R6310"
"Wolverhampton City Council","http://opendatacommunities.org/id/metropolitan-district-council/wolverhampton","721620","Rider Levett Bucknall UK Ltd","112478","3,150.00","Services - Professional Fees","130237379","09/01/2019","Corporate Asset Management","Assets Service Transformation Programme","R4400"
"Wolverhampton City Council","http://opendatacommunities.org/id/metropolitan-district-council/wolverhampton","721620","Rider Levett Bucknall UK Ltd","127505","1,850.00","Services - Professional Fees","130239822","25/01/2019","Corporate Asset Management","Assets Service Transformation Programme","R4400"
"Wolverhampton City Council","http://opendatacommunities.org/id/metropolitan-district-council/wolverhampton","721634","AR Curtis Developments LTD","WCC/COURTAULDS/1012/1218","5,200.00","Construction and Conversion","130237773","04/01/2019","-","Site Remediation Farndale","C1100"
"Wolverhampton City Council","http://opendatacommunities.org/id/metropolitan-district-council/wolverhampton","721640","Edge Training & Consultancy Limited","4544","1,095.00","Training Expenses","130241943","30/01/2019","Public Service Reform","Workforce Development","R1650"
"Wolverhampton City Council","http://opendatacommunities.org/id/metropolitan-district-council/wolverhampton","721670","Galliford Try Partner (Wolv) Ltd","4229000023","115,858.82","Construction and Conversion","130240356","16/01/2019","-","Tap Works site","C1100"
"Wolverhampton City Council","http://opendatacommunities.org/id/metropolitan-district-council/wolverhampton","721715","EE Equipment Account","960073255","750.00","Comms - Mobile Telephones","130239273","16/01/2019","ICTS","Strategic ICTS (ICT Service Budget)","R4507"
"Wolverhampton City Council","http://opendatacommunities.org/id/metropolitan-district-council/wolverhampton","721715","EE Equipment Account","960038658","343.00","Comms - Mobile Telephones","130241099","18/01/2019","ICTS","Strategic ICTS (ICT Service Budget)","R4507"
"Wolverhampton City Council","http://opendatacommunities.org/id/metropolitan-district-council/wolverhampton","721715","EE Equipment Account","126251636","780.00","Comms - Mobile Telephones","130241101","18/01/2019","ICTS","Strategic ICTS (ICT Service Budget)","R4507"
"Wolverhampton City Council","http://opendatacommunities.org/id/metropolitan-district-council/wolverhampton","721715","EE Equipment Account","960075043","169.00","Comms - Mobile Telephones","130239654","23/01/2019","ICTS","Strategic ICTS (ICT Service Budget)","R4507"
"Wolverhampton City Council","http://opendatacommunities.org/id/metropolitan-district-council/wolverhampton","721715","EE Equipment Account","960069892","185.00","Comms - Mobile Telephones","130238945","09/01/2019","ICTS","Strategic ICTS (ICT Service Budget)","R4507"
"Wolverhampton City Council","http://opendatacommunities.org/id/metropolitan-district-council/wolverhampton","721715","EE Equipment Account","126258786","-50.00","Comms - Mobile Telephones","130215084","18/01/2019","ICTS","Strategic ICTS (ICT Service Budget)","R4507"
"Wolverhampton City Council","http://opendatacommunities.org/id/metropolitan-district-council/wolverhampton","721715","EE Equipment Account","980045610","-350.00","Comms - Mobile Telephones","130234105","18/01/2019","ICTS","Strategic ICTS (ICT Service Budget)","R4507"
"Wolverhampton City Council","http://opendatacommunities.org/id/metropolitan-district-council/wolverhampton","721715","EE Equipment Account","126279698","-50.00","Comms - Mobile Telephones","130241100","18/01/2019","ICTS","Strategic ICTS (ICT Service Budget)","R4507"
"Wolverhampton City Council","http://opendatacommunities.org/id/metropolitan-district-council/wolverhampton","721715","EE Equipment Account","960086225","-100.00","Comms - Mobile Telephones","130238250","02/01/2019","ICTS","Strategic ICTS (ICT Service Budget)","R4507"
"Wolverhampton City Council","http://opendatacommunities.org/id/metropolitan-district-council/wolverhampton","721715","EE Equipment Account","126274534","650.00","Comms - Mobile Telephones","130217485","02/01/2019","ICTS","Strategic ICTS (ICT Service Budget)","R4507"
"Wolverhampton City Council","http://opendatacommunities.org/id/metropolitan-district-council/wolverhampton","721715","EE Equipment Account","126298968","199.00","Comms - Mobile Telephones","130224770","02/01/2019","ICTS","Strategic ICTS (ICT Service Budget)","R4507"
"Wolverhampton City Council","http://opendatacommunities.org/id/metropolitan-district-council/wolverhampton","721715","EE Equipment Account","960076674","108.00","Comms - Mobile Telephones","130240455","30/01/2019","ICTS","Strategic ICTS (ICT Service Budget)","R4507"
"Wolverhampton City Council","http://opendatacommunities.org/id/metropolitan-district-council/wolverhampton","721715","EE Equipment Account","960073254","500.00","Comms - Mobile Telephones","130239272","23/01/2019","ICTS","Strategic ICTS (ICT Service Budget)","R4507"
"Wolverhampton City Council","http://opendatacommunities.org/id/metropolitan-district-council/wolverhampton","721715","EE Equipment Account","960066224","-50.00","Comms - Mobile Telephones","130238248","02/01/2019","ICTS","Strategic ICTS (ICT Service Budget)","R4507"
"Wolverhampton City Council","http://opendatacommunities.org/id/metropolitan-district-council/wolverhampton","721718","The Studio 4 Creative Ltd","ON4087","300.00","Services - Consultants","130239823","25/01/2019","Adult Education","Service Wide","R4404"
"Wolverhampton City Council","http://opendatacommunities.org/id/metropolitan-district-council/wolverhampton","721722","Swim England Trading Limited","SWINV015245","884.70","Materials for resale","130241616","25/01/2019","Leisure Services","Bert Williams Leisure Centre","R4008"
"Wolverhampton City Council","http://opendatacommunities.org/id/metropolitan-district-council/wolverhampton","721722","Swim England Trading Limited","SWINV015223","503.00","Materials for resale","130241615","25/01/2019","Leisure Services","Bert Williams Leisure Centre","R4008"
"Wolverhampton City Council","http://opendatacommunities.org/id/metropolitan-district-council/wolverhampton","721727","Red Sector Recruitment Limited","100124","1,831.50","Agency Staff","130242287","30/01/2019","Strengthening Families","CP Area 7 - Low Hill","R1100"
"Wolverhampton City Council","http://opendatacommunities.org/id/metropolitan-district-council/wolverhampton","721727","Red Sector Recruitment Limited","101005","1,173.00","Agency Staff","130237097","02/01/2019","Strengthening Families","CP Area 7 - Low Hill","R1100"
"Wolverhampton City Council","http://opendatacommunities.org/id/metropolitan-district-council/wolverhampton","721727","Red Sector Recruitment Limited","101004","1,446.70","Agency Staff","130237096","02/01/2019","Strengthening Families","CP Area 7 - Low Hill","R1100"
"Wolverhampton City Council","http://opendatacommunities.org/id/metropolitan-district-council/wolverhampton","721727","Red Sector Recruitment Limited","101004","30.00","Agency Staff","130237096","02/01/2019","Strengthening Families","CP Area 7 - Low Hill","R1100"
"Wolverhampton City Council","http://opendatacommunities.org/id/metropolitan-district-council/wolverhampton","721727","Red Sector Recruitment Limited","100279","1,446.70","Agency Staff","130240863","18/01/2019","Strengthening Families","CP Area 7 - Low Hill","R1100"
"Wolverhampton City Council","http://opendatacommunities.org/id/metropolitan-district-council/wolverhampton","721727","Red Sector Recruitment Limited","100479","1,446.70","Agency Staff","130230126","23/01/2019","Strengthening Families","CP Area 7 - Low Hill","R1100"
"Wolverhampton City Council","http://opendatacommunities.org/id/metropolitan-district-council/wolverhampton","721727","Red Sector Recruitment Limited","100479","36.00","Agency Staff","130230126","23/01/2019","Strengthening Families","CP Area 7 - Low Hill","R1100"
"Wolverhampton City Council","http://opendatacommunities.org/id/metropolitan-district-council/wolverhampton","721727","Red Sector Recruitment Limited","100591","1,446.70","Agency Staff","130230130","23/01/2019","Strengthening Families","CP Area 7 - Low Hill","R1100"
"Wolverhampton City Council","http://opendatacommunities.org/id/metropolitan-district-council/wolverhampton","721727","Red Sector Recruitment Limited","100591","30.00","Agency Staff","130230130","23/01/2019","Strengthening Families","CP Area 7 - Low Hill","R1100"
"Wolverhampton City Council","http://opendatacommunities.org/id/metropolitan-district-council/wolverhampton","721727","Red Sector Recruitment Limited","100652","1,446.70","Agency Staff","130230132","23/01/2019","Strengthening Families","CP Area 7 - Low Hill","R1100"
"Wolverhampton City Council","http://opendatacommunities.org/id/metropolitan-district-council/wolverhampton","721727","Red Sector Recruitment Limited","100652","15.00","Agency Staff","130230132","23/01/2019","Strengthening Families","CP Area 7 - Low Hill","R1100"
"Wolverhampton City Council","http://opendatacommunities.org/id/metropolitan-district-council/wolverhampton","721727","Red Sector Recruitment Limited","100866","1,446.70","Agency Staff","130234879","23/01/2019","Strengthening Families","CP Area 7 - Low Hill","R1100"
"Wolverhampton City Council","http://opendatacommunities.org/id/metropolitan-district-council/wolverhampton","721727","Red Sector Recruitment Limited","100866","20.00","Agency Staff","130234879","23/01/2019","Strengthening Families","CP Area 7 - Low Hill","R1100"
"Wolverhampton City Council","http://opendatacommunities.org/id/metropolitan-district-council/wolverhampton","721727","Red Sector Recruitment Limited","100318","1,446.70","Agency Staff","130240864","23/01/2019","Strengthening Families","CP Area 7 - Low Hill","R1100"
"Wolverhampton City Council","http://opendatacommunities.org/id/metropolitan-district-council/wolverhampton","721727","Red Sector Recruitment Limited","100470","1,446.70","Agency Staff","130230125","23/01/2019","Strengthening Families","CP Area 7 - Low Hill","R1100"
"Wolverhampton City Council","http://opendatacommunities.org/id/metropolitan-district-council/wolverhampton","721727","Red Sector Recruitment Limited","100470","30.00","Agency Staff","130230125","23/01/2019","Strengthening Families","CP Area 7 - Low Hill","R1100"
"Wolverhampton City Council","http://opendatacommunities.org/id/metropolitan-district-council/wolverhampton","721727","Red Sector Recruitment Limited","100621","1,446.70","Agency Staff","130230131","23/01/2019","Strengthening Families","CP Area 7 - Low Hill","R1100"
"Wolverhampton City Council","http://opendatacommunities.org/id/metropolitan-district-council/wolverhampton","721727","Red Sector Recruitment Limited","100621","30.00","Agency Staff","130230131","23/01/2019","Strengthening Families","CP Area 7 - Low Hill","R1100"
"Wolverhampton City Council","http://opendatacommunities.org/id/metropolitan-district-council/wolverhampton","721727","Red Sector Recruitment Limited","100752","1,446.70","Agency Staff","130232299","23/01/2019","Strengthening Families","CP Area 7 - Low Hill","R1100"
"Wolverhampton City Council","http://opendatacommunities.org/id/metropolitan-district-council/wolverhampton","721727","Red Sector Recruitment Limited","100752","20.00","Agency Staff","130232299","23/01/2019","Strengthening Families","CP Area 7 - Low Hill","R1100"
"Wolverhampton City Council","http://opendatacommunities.org/id/metropolitan-district-council/wolverhampton","721727","Red Sector Recruitment Limited","100898","1,446.70","Agency Staff","130235256","23/01/2019","Strengthening Families","CP Area 7 - Low Hill","R1100"
"Wolverhampton City Council","http://opendatacommunities.org/id/metropolitan-district-council/wolverhampton","721727","Red Sector Recruitment Limited","100898","20.00","Agency Staff","130235256","23/01/2019","Strengthening Families","CP Area 7 - Low Hill","R1100"
"Wolverhampton City Council","http://opendatacommunities.org/id/metropolitan-district-council/wolverhampton","721727","Red Sector Recruitment Limited","100502","1,446.70","Agency Staff","130230127","23/01/2019","Strengthening Families","CP Area 7 - Low Hill","R1100"
"Wolverhampton City Council","http://opendatacommunities.org/id/metropolitan-district-council/wolverhampton","721727","Red Sector Recruitment Limited","100502","30.00","Agency Staff","130230127","23/01/2019","Strengthening Families","CP Area 7 - Low Hill","R1100"
"Wolverhampton City Council","http://opendatacommunities.org/id/metropolitan-district-council/wolverhampton","721727","Red Sector Recruitment Limited","100685","1,446.70","Agency Staff","130232297","23/01/2019","Strengthening Families","CP Area 7 - Low Hill","R1100"
"Wolverhampton City Council","http://opendatacommunities.org/id/metropolitan-district-council/wolverhampton","721727","Red Sector Recruitment Limited","100556","1,251.20","Agency Staff","130230129","23/01/2019","Strengthening Families","CP Area 7 - Low Hill","R1100"
"Wolverhampton City Council","http://opendatacommunities.org/id/metropolitan-district-council/wolverhampton","721727","Red Sector Recruitment Limited","100556","30.00","Agency Staff","130230129","23/01/2019","Strengthening Families","CP Area 7 - Low Hill","R1100"
"Wolverhampton City Council","http://opendatacommunities.org/id/metropolitan-district-council/wolverhampton","721727","Red Sector Recruitment Limited","100530","1,446.70","Agency Staff","130230128","23/01/2019","Strengthening Families","CP Area 7 - Low Hill","R1100"
"Wolverhampton City Council","http://opendatacommunities.org/id/metropolitan-district-council/wolverhampton","721727","Red Sector Recruitment Limited","100530","30.00","Agency Staff","130230128","23/01/2019","Strengthening Families","CP Area 7 - Low Hill","R1100"
"Wolverhampton City Council","http://opendatacommunities.org/id/metropolitan-district-council/wolverhampton","721727","Red Sector Recruitment Limited","100715","1,446.70","Agency Staff","130232298","23/01/2019","Strengthening Families","CP Area 7 - Low Hill","R1100"
"Wolverhampton City Council","http://opendatacommunities.org/id/metropolitan-district-council/wolverhampton","721727","Red Sector Recruitment Limited","100715","30.00","Agency Staff","130232298","23/01/2019","Strengthening Families","CP Area 7 - Low Hill","R1100"
"Wolverhampton City Council","http://opendatacommunities.org/id/metropolitan-district-council/wolverhampton","721727","Red Sector Recruitment Limited","100833","1,446.70","Agency Staff","130233841","23/01/2019","Strengthening Families","CP Area 7 - Low Hill","R1100"
"Wolverhampton City Council","http://opendatacommunities.org/id/metropolitan-district-council/wolverhampton","721727","Red Sector Recruitment Limited","100833","20.00","Agency Staff","130233841","23/01/2019","Strengthening Families","CP Area 7 - Low Hill","R1100"
"Wolverhampton City Council","http://opendatacommunities.org/id/metropolitan-district-council/wolverhampton","721727","Red Sector Recruitment Limited","100976","1,446.70","Agency Staff","130236495","23/01/2019","Strengthening Families","CP Area 7 - Low Hill","R1100"
"Wolverhampton City Council","http://opendatacommunities.org/id/metropolitan-district-council/wolverhampton","721727","Red Sector Recruitment Limited","100976","20.00","Agency Staff","130236495","23/01/2019","Strengthening Families","CP Area 7 - Low Hill","R1100"
"Wolverhampton City Council","http://opendatacommunities.org/id/metropolitan-district-council/wolverhampton","721727","Red Sector Recruitment Limited","100685","30.00","Agency Staff","130232297","23/01/2019","Strengthening Families","CP Area 7 - Low Hill","R1100"
"Wolverhampton City Council","http://opendatacommunities.org/id/metropolitan-district-council/wolverhampton","721727","Red Sector Recruitment Limited","100788","1,446.70","Agency Staff","130233840","23/01/2019","Strengthening Families","CP Area 7 - Low Hill","R1100"
"Wolverhampton City Council","http://opendatacommunities.org/id/metropolitan-district-council/wolverhampton","721727","Red Sector Recruitment Limited","100788","20.00","Agency Staff","130233840","23/01/2019","Strengthening Families","CP Area 7 - Low Hill","R1100"
"Wolverhampton City Council","http://opendatacommunities.org/id/metropolitan-district-council/wolverhampton","721727","Red Sector Recruitment Limited","100935","1,446.70","Agency Staff","130236025","23/01/2019","Strengthening Families","CP Area 7 - Low Hill","R1100"
"Wolverhampton City Council","http://opendatacommunities.org/id/metropolitan-district-council/wolverhampton","721727","Red Sector Recruitment Limited","100935","20.00","Agency Staff","130236025","23/01/2019","Strengthening Families","CP Area 7 - Low Hill","R1100"
"Wolverhampton City Council","http://opendatacommunities.org/id/metropolitan-district-council/wolverhampton","721786","Simple Stuff Works Associates Ltd","10748","134.00","Equipment - Purchase","130238081","09/01/2019","Older People Provider Services","ILS Stores","R4000"
"Wolverhampton City Council","http://opendatacommunities.org/id/metropolitan-district-council/wolverhampton","721786","Simple Stuff Works Associates Ltd","10748","248.00","Equipment - Purchase","130238081","09/01/2019","Older People Provider Services","ILS Stores","R4000"
"Wolverhampton City Council","http://opendatacommunities.org/id/metropolitan-district-council/wolverhampton","721789","Portable Toilets Limited","10001","400.00","Equipment - Hire","130239274","09/01/2019","Visitor Economy","ALV - Darts & Comedy","R4001"
"Wolverhampton City Council","http://opendatacommunities.org/id/metropolitan-district-council/wolverhampton","721789","Portable Toilets Limited","10002","450.00","Equipment - Hire","130239275","09/01/2019","Leisure Services","Aldersley Leisure Village","R4001"
"Wolverhampton City Council","http://opendatacommunities.org/id/metropolitan-district-council/wolverhampton","721801","M & A Surveys Ltd","4735","2,460.00","Services - Fees and Charges","130239824","16/01/2019","Housing","Wholly Owned Company - Operations","R4401"
"Wolverhampton City Council","http://opendatacommunities.org/id/metropolitan-district-council/wolverhampton","721816","Western Signs & Printing","21940","4,630.00","Printing","130239491","30/01/2019","ICTS","Document Centre - General","R4300"
"Wolverhampton City Council","http://opendatacommunities.org/id/metropolitan-district-council/wolverhampton","721816","Western Signs & Printing","21863","150.00","Equipment - Purchase","130235467","30/01/2019","ICTS","Document Centre - General","R4000"
"Wolverhampton City Council","http://opendatacommunities.org/id/metropolitan-district-council/wolverhampton","721816","Western Signs & Printing","21863","535.00","Equipment - Purchase","130235467","30/01/2019","ICTS","Document Centre - General","R4000"
"Wolverhampton City Council","http://opendatacommunities.org/id/metropolitan-district-council/wolverhampton","721816","Western Signs & Printing","21863","25.50","Equipment - Purchase","130235467","30/01/2019","ICTS","Document Centre - General","R4000"
"Wolverhampton City Council","http://opendatacommunities.org/id/metropolitan-district-council/wolverhampton","721816","Western Signs & Printing","21863","47.85","Equipment - Purchase","130235467","30/01/2019","ICTS","Document Centre - General","R4000"
"Wolverhampton City Council","http://opendatacommunities.org/id/metropolitan-district-council/wolverhampton","721816","Western Signs & Printing","21863","43.90","Equipment - Purchase","130235467","30/01/2019","ICTS","Document Centre - General","R4000"
"Wolverhampton City Council","http://opendatacommunities.org/id/metropolitan-district-council/wolverhampton","721816","Western Signs & Printing","21863","5.50","Equipment - Purchase","130235467","30/01/2019","ICTS","Document Centre - General","R4000"
"Wolverhampton City Council","http://opendatacommunities.org/id/metropolitan-district-council/wolverhampton","721816","Western Signs & Printing","21863","3.55","Equipment - Purchase","130235467","30/01/2019","ICTS","Document Centre - General","R4000"
"Wolverhampton City Council","http://opendatacommunities.org/id/metropolitan-district-council/wolverhampton","721816","Western Signs & Printing","21863","10.00","Equipment - Purchase","130235467","30/01/2019","ICTS","Document Centre - General","R4000"
"Wolverhampton City Council","http://opendatacommunities.org/id/metropolitan-district-council/wolverhampton","721816","Western Signs & Printing","21863","322.08","Equipment - Purchase","130235467","30/01/2019","ICTS","Document Centre - General","R4000"
"Wolverhampton City Council","http://opendatacommunities.org/id/metropolitan-district-council/wolverhampton","721819","UPM-Kymmene (UK) Ltd","3010323962","1,071.16","TPP - Recycling Contract","130236720","09/01/2019","Waste and Recycling Service","Waste Collection and Recycling Service - General","R5004"
"Wolverhampton City Council","http://opendatacommunities.org/id/metropolitan-district-council/wolverhampton","721819","UPM-Kymmene (UK) Ltd","3010323976","25,500.00","TPP - Recycling Contract","130236721","09/01/2019","Waste and Recycling Service","Waste Collection and Recycling Service - General","R5004"
"Wolverhampton City Council","http://opendatacommunities.org/id/metropolitan-district-council/wolverhampton","721819","UPM-Kymmene (UK) Ltd","3010323943","45,516.37","TPP - Recycling Contract","130236719","09/01/2019","Waste and Recycling Service","Waste Collection and Recycling Service - General","R5004"
"Wolverhampton City Council","http://opendatacommunities.org/id/metropolitan-district-council/wolverhampton","721819","UPM-Kymmene (UK) Ltd","3010323701","24,000.00","TPP - Recycling Contract","130236718","09/01/2019","Waste and Recycling Service","Waste Collection and Recycling Service - General","R5004"
"Wolverhampton City Council","http://opendatacommunities.org/id/metropolitan-district-council/wolverhampton","721819","UPM-Kymmene (UK) Ltd","3010323676","36,883.53","TPP - Recycling Contract","130236717","09/01/2019","Waste and Recycling Service","Waste Collection and Recycling Service - General","R5004"
"Wolverhampton City Council","http://opendatacommunities.org/id/metropolitan-district-council/wolverhampton","721832","IZ Management Limited","005","4,500.00","Services - Consultants","130241446","23/01/2019","Service Director Children & Young People","Children & Young People Support Costs","R4404"
"Wolverhampton City Council","http://opendatacommunities.org/id/metropolitan-district-council/wolverhampton","721839","MacLellan Rubber","0000062196","35,837.70","Construction and Conversion","130237965","04/01/2019","-","GF - Leisure Centres Enhancement","C1100"
"Wolverhampton City Council","http://opendatacommunities.org/id/metropolitan-district-council/wolverhampton","721841","Tweedale","PM3035","13,202.50","External Professional Fees","130239492","25/01/2019","-","Decent Homes - Stock Improvements","C6002"
"Wolverhampton City Council","http://opendatacommunities.org/id/metropolitan-district-council/wolverhampton","721842","MHF UK Ltd","1249","-230.00","Hire of Vehices - Fleet Management","130237957","25/01/2019","Waste and Recycling Service","Waste Collection and Recycling Service - General","R3202"
"Wolverhampton City Council","http://opendatacommunities.org/id/metropolitan-district-council/wolverhampton","721842","MHF UK Ltd","32942","2,300.00","Hire of Vehices - Fleet Management","130239656","25/01/2019","Waste and Recycling Service","Waste Collection and Recycling Service - General","R3202"
"Wolverhampton City Council","http://opendatacommunities.org/id/metropolitan-district-council/wolverhampton","721843","Midland Supercream (Brierley Hill) Ltd","INV-25211","209.99","Provisions (Resale)","130237774","11/01/2019","Catering","West Park Tea Room","R4102"
"Wolverhampton City Council","http://opendatacommunities.org/id/metropolitan-district-council/wolverhampton","721843","Midland Supercream (Brierley Hill) Ltd","INV-25318","14.00","Provisions (Resale)","130237776","11/01/2019","Catering","West Park Tea Room","R4102"
"Wolverhampton City Council","http://opendatacommunities.org/id/metropolitan-district-council/wolverhampton","721843","Midland Supercream (Brierley Hill) Ltd","INV-25381","248.17","Provisions (Resale)","130238946","09/01/2019","Leisure Services","WV Active Catering","R4102"
"Wolverhampton City Council","http://opendatacommunities.org/id/metropolitan-district-council/wolverhampton","721843","Midland Supercream (Brierley Hill) Ltd","INV-25381","823.02","Provisions (Resale)","130238946","09/01/2019","Leisure Services","WV Active Catering","R4102"
"Wolverhampton City Council","http://opendatacommunities.org/id/metropolitan-district-council/wolverhampton","721843","Midland Supercream (Brierley Hill) Ltd","INV-25315","203.20","Provisions (Resale)","130237775","09/01/2019","Catering","West Park Tea Room","R4102"
"Wolverhampton City Council","http://opendatacommunities.org/id/metropolitan-district-council/wolverhampton","721846","GAP Group Limited","409189000","3,837.50","Hire of Plant","130239657","25/01/2019","Waste and Recycling Service","Anchor Lane Civic Amenity Site","R3201"
"Wolverhampton City Council","http://opendatacommunities.org/id/metropolitan-district-council/wolverhampton","721846","GAP Group Limited","409189000","3,837.50","Hire of Plant","130239657","25/01/2019","Waste and Recycling Service","Shaw Road Civic Amenity Site","R3201"
"Wolverhampton City Council","http://opendatacommunities.org/id/metropolitan-district-council/wolverhampton","721848","Berrington Lodge Nursery","TFT Spring 2019 Inst 1","3,961.44","TPP - Private Nursery Education Funding","190553192","23/01/2019","Early Years","Early Years Entitlement Funding for Disadvantaged 2 Year Olds","R5035"
"Wolverhampton City Council","http://opendatacommunities.org/id/metropolitan-district-council/wolverhampton","721848","Berrington Lodge Nursery","NEF Spring 2019 INST 1","535.50","TPP - Private Nursery Education Funding","190553185","23/01/2019","Early Years","Early Years Universal Entitlement for 3 and 4 Year Olds","R5035"
"Wolverhampton City Council","http://opendatacommunities.org/id/metropolitan-district-council/wolverhampton","721857","Changing  Rooms Ltd","17/0122/DFG","4,716.80","Grants paid out to other organisations","190551225","16/01/2019","-","Disabled Facilities Grants","C5011"
"Wolverhampton City Council","http://opendatacommunities.org/id/metropolitan-district-council/wolverhampton","721880","Enovert North Limited","114251HM","560.75","TPP - Waste Disposal","130237777","04/01/2019","Waste and Recycling Service","Waste Collection and Recycling Service - General","R5003"
"Wolverhampton City Council","http://opendatacommunities.org/id/metropolitan-district-council/wolverhampton","721880","Enovert North Limited","114371HM","941.17","TPP - Waste Disposal","130239658","23/01/2019","Waste and Recycling Service","Waste Collection and Recycling Service - General","R5003"
"Wolverhampton City Council","http://opendatacommunities.org/id/metropolitan-district-council/wolverhampton","721880","Enovert North Limited","114022HM","1,191.86","TPP - Waste Disposal","130235628","11/01/2019","Waste and Recycling Service","Waste Collection and Recycling Service - General","R5003"
"Wolverhampton City Council","http://opendatacommunities.org/id/metropolitan-district-council/wolverhampton","721880","Enovert North Limited","113897HM","1,165.46","TPP - Waste Disposal","130234107","11/01/2019","Waste and Recycling Service","Waste Collection and Recycling Service - General","R5003"
"Wolverhampton City Council","http://opendatacommunities.org/id/metropolitan-district-council/wolverhampton","721880","Enovert North Limited","114314HM","1,235.84","TPP - Waste Disposal","130238729","11/01/2019","Waste and Recycling Service","Waste Collection and Recycling Service - General","R5003"
"Wolverhampton City Council","http://opendatacommunities.org/id/metropolitan-district-council/wolverhampton","721903","Central Electrical Contracts Ltd","SI-1888","380.00","Computing - Purchase of Hardware","130237958","02/01/2019","ICTS","Strategic ICTS (ICT Service Budget)","R4530"
"Wolverhampton City Council","http://opendatacommunities.org/id/metropolitan-district-council/wolverhampton","721903","Central Electrical Contracts Ltd","SI-1891","325.00","Computing - Purchase of Hardware","130237959","09/01/2019","ICTS","Strategic ICTS (ICT Service Budget)","R4530"
"Wolverhampton City Council","http://opendatacommunities.org/id/metropolitan-district-council/wolverhampton","721903","Central Electrical Contracts Ltd","SI-1911","650.00","Services - Consultants","130238730","09/01/2019","Learning Disability Provider","Learning Disabilities Management","R4404"
"Wolverhampton City Council","http://opendatacommunities.org/id/metropolitan-district-council/wolverhampton","721914","WM Printing Solutions Limited","95300A","4,722.00","Printing","130240609","16/01/2019","ICTS","Document Centre - General","R4300"
"Wolverhampton City Council","http://opendatacommunities.org/id/metropolitan-district-council/wolverhampton","721914","WM Printing Solutions Limited","95687","276.00","Printing","130235083","09/01/2019","ICTS","Document Centre - General","R4300"
"Wolverhampton City Council","http://opendatacommunities.org/id/metropolitan-district-council/wolverhampton","721914","WM Printing Solutions Limited","95687","121.00","Printing","130235083","09/01/2019","ICTS","Document Centre - General","R4300"
"Wolverhampton City Council","http://opendatacommunities.org/id/metropolitan-district-council/wolverhampton","721914","WM Printing Solutions Limited","23137","-121.00","Printing","130235840","09/01/2019","ICTS","Document Centre - General","R4300"
"Wolverhampton City Council","http://opendatacommunities.org/id/metropolitan-district-council/wolverhampton","721914","WM Printing Solutions Limited","95925","121.00","Printing","130235841","11/01/2019","ICTS","Document Centre - General","R4300"
"Wolverhampton City Council","http://opendatacommunities.org/id/metropolitan-district-council/wolverhampton","721917","AHR Building Consultancy Ltd","90733","33,450.00","Services - Fees and Charges","130241620","25/01/2019","City Development","City Learning Quarter Regen Reserve","R4401"
"Wolverhampton City Council","http://opendatacommunities.org/id/metropolitan-district-council/wolverhampton","721939","Secure-A-Fence Limited","101","365.00","R&M - Departmental response (external)","130239276","04/01/2019","Environmental Maintenance","Parks - East Area Management","R2003"
"Wolverhampton City Council","http://opendatacommunities.org/id/metropolitan-district-council/wolverhampton","721939","Secure-A-Fence Limited","104","675.00","R&M - Departmental response (external)","130239277","04/01/2019","Environmental Maintenance","Parks - East Area Management","R2003"
"Wolverhampton City Council","http://opendatacommunities.org/id/metropolitan-district-council/wolverhampton","721941","Refood UK Ltd","111219210","50.00","Refuse Collection","130241084","30/01/2019","Waste and Recycling Service","Waste Collection and Recycling Service - General","R2704"
"Wolverhampton City Council","http://opendatacommunities.org/id/metropolitan-district-council/wolverhampton","721941","Refood UK Ltd","111219203","90.00","Refuse Collection","130241077","30/01/2019","Waste and Recycling Service","Waste Collection and Recycling Service - General","R2704"
"Wolverhampton City Council","http://opendatacommunities.org/id/metropolitan-district-council/wolverhampton","721941","Refood UK Ltd","111219204","40.00","Refuse Collection","130241078","30/01/2019","Waste and Recycling Service","Waste Collection and Recycling Service - General","R2704"
"Wolverhampton City Council","http://opendatacommunities.org/id/metropolitan-district-council/wolverhampton","721941","Refood UK Ltd","111219213","40.00","Refuse Collection","130241087","30/01/2019","Waste and Recycling Service","Waste Collection and Recycling Service - General","R2704"
"Wolverhampton City Council","http://opendatacommunities.org/id/metropolitan-district-council/wolverhampton","721941","Refood UK Ltd","111219212","170.00","Refuse Collection","130241086","30/01/2019","Waste and Recycling Service","Waste Collection and Recycling Service - General","R2704"
"Wolverhampton City Council","http://opendatacommunities.org/id/metropolitan-district-council/wolverhampton","721941","Refood UK Ltd","111219215","40.00","Refuse Collection","130241089","30/01/2019","Waste and Recycling Service","Waste Collection and Recycling Service - General","R2704"
"Wolverhampton City Council","http://opendatacommunities.org/id/metropolitan-district-council/wolverhampton","721958","Justyna Bucknall","NEF Spring 2019 INST 1","459.00","TPP - Private Nursery Education Funding","190553185","23/01/2019","Early Years","Early Years Universal Entitlement for 3 and 4 Year Olds","R5035"
"Wolverhampton City Council","http://opendatacommunities.org/id/metropolitan-district-council/wolverhampton","721976","Young People At Heart Limited","P195936 03021920190114","3,200.00","TPP - Placement Foster Care Agency","190550160","16/01/2019","Children & Young People In Care","Out of City Placements","R5602"
"Wolverhampton City Council","http://opendatacommunities.org/id/metropolitan-district-council/wolverhampton","722006","Murley Agricultural Supplies  Ltd","277187","2,546.12","Equipment - R & M","130239944","30/01/2019","Waste and Recycling Service","Waste Collection and Recycling Service - General","R4003"
"Wolverhampton City Council","http://opendatacommunities.org/id/metropolitan-district-council/wolverhampton","722006","Murley Agricultural Supplies  Ltd","276564","2,546.12","Equipment - R & M","130237099","02/01/2019","Waste and Recycling Service","Waste Collection and Recycling Service - General","R4003"
"Wolverhampton City Council","http://opendatacommunities.org/id/metropolitan-district-council/wolverhampton","722047","Orchard Therapeutic Services","OTS136","2,959.00","Direct Work With Children","130241090","23/01/2019","Children & Young People In Care","Adoption Support Fund","R6310"
"Wolverhampton City Council","http://opendatacommunities.org/id/metropolitan-district-council/wolverhampton","722052","Honeybuns Nursery","30406","666.00","TPP - Child Care provided for client","130241617","30/01/2019","Adult Education","24+ Advanced Learning Loan","R5034"
"Wolverhampton City Council","http://opendatacommunities.org/id/metropolitan-district-council/wolverhampton","722052","Honeybuns Nursery","30394","399.60","TPP - Child Care provided for client","130240868","18/01/2019","Adult Education","24+ Advanced Learning Loan","R5034"
"Wolverhampton City Council","http://opendatacommunities.org/id/metropolitan-district-council/wolverhampton","722084","Storm Environmental Ltd","6000423","2,264.90","Waste Management","130238813","09/01/2019","Waste and Recycling Service","Waste Man.Partnership-Trade Collection","R2703"
"Wolverhampton City Council","http://opendatacommunities.org/id/metropolitan-district-council/wolverhampton","722096","Finishing Touches(semi-perm make-up)Ltd","78928","3,250.00","Training Expenses","130237963","30/01/2019","Skills","IMPACT","R1650"
"Wolverhampton City Council","http://opendatacommunities.org/id/metropolitan-district-council/wolverhampton","722096","Finishing Touches(semi-perm make-up)Ltd","82233","-416.67","Training Expenses","130240867","30/01/2019","Skills","IMPACT","R1650"
"Wolverhampton City Council","http://opendatacommunities.org/id/metropolitan-district-council/wolverhampton","722104","Made In Birmingham Ltd","0176","4,490.00","Marketing \ Non-staff advertising","130233310","04/01/2019","Waste and Recycling Service","Waste Collection and Recycling Service - General","R4317"
"Wolverhampton City Council","http://opendatacommunities.org/id/metropolitan-district-council/wolverhampton","722123","Coppice Performing Arts School","HCLI SEN Payment for 2018-19","4,918.68","Grant Payments","190545443","02/01/2019","Central Education","Secondary ISB","R4700"
"Wolverhampton City Council","http://opendatacommunities.org/id/metropolitan-district-council/wolverhampton","722130","Ewing Foundation","INV-2019498","350.00","Services - Assistive technology","130239660","04/01/2019","Special Educational Needs","SEN Sensory Inclusion","R4407"
"Wolverhampton City Council","http://opendatacommunities.org/id/metropolitan-district-council/wolverhampton","722130","Ewing Foundation","INV-2019497","302.00","Services - Assistive technology","130239659","04/01/2019","Special Educational Needs","SEN Sensory Inclusion","R4407"
"Wolverhampton City Council","http://opendatacommunities.org/id/metropolitan-district-council/wolverhampton","722166","Phaedra Brickwood","25058","2,365.98","Services - Professional Fees","130241618","25/01/2019","School Planning & Resources","Music Support Team","R4400"
"Wolverhampton City Council","http://opendatacommunities.org/id/metropolitan-district-council/wolverhampton","722177","John Kane Kars Ltd","00306","235.00","Insurance - General","130238947","16/01/2019","Environmental Maintenance","Direct Schools","R4962"
"Wolverhampton City Council","http://opendatacommunities.org/id/metropolitan-district-council/wolverhampton","722177","John Kane Kars Ltd","00303","90.44","Insurance - General","130238524","16/01/2019","Waste and Recycling Service","Shaw Road Civic Amenity Site","R4962"
"Wolverhampton City Council","http://opendatacommunities.org/id/metropolitan-district-council/wolverhampton","722179","WEA","SLIN/00004146","576.00","Services - Professional Fees","130238082","09/01/2019","Skills","Employment Programmes","R4400"
"Wolverhampton City Council","http://opendatacommunities.org/id/metropolitan-district-council/wolverhampton","722179","WEA","SLIN/00004155","1,500.00","Services - Professional Fees","130239280","16/01/2019","Skills","Employment Programmes","R4400"
"Wolverhampton City Council","http://opendatacommunities.org/id/metropolitan-district-council/wolverhampton","722179","WEA","SLIN/00004154","1,000.00","Services - Professional Fees","130239279","16/01/2019","Skills","Employment Programmes","R4400"
"Wolverhampton City Council","http://opendatacommunities.org/id/metropolitan-district-council/wolverhampton","722182","Couch Perry & Wilkes LLP","INV10009","3,835.00","R&M - Departmental planned (external)","130239042","04/01/2019","Maintenance Programme","Civic Centre Repairs & Maintenance","R2001"
"Wolverhampton City Council","http://opendatacommunities.org/id/metropolitan-district-council/wolverhampton","722184","Talking Resolutions","TRCWC118","600.00","Services - Professional Fees","130237566","04/01/2019","Children & Young People In Care","Fostering Team & Allowances","R4400"
"Wolverhampton City Council","http://opendatacommunities.org/id/metropolitan-district-council/wolverhampton","722189","Big Blue Door Limited","2239","3,650.00","Computing - Purchase of Software","130238814","23/01/2019","Digital Transformation Programme","Digital Transformation Programme (Recharge to Capital)","R4531"
"Wolverhampton City Council","http://opendatacommunities.org/id/metropolitan-district-council/wolverhampton","722205","Maple hayes School","857A06/11/18","5,060.20","TPP - Independent Schools","130239946","09/01/2019","Special Educational Needs","SEN Education OOC","R5036"
"Wolverhampton City Council","http://opendatacommunities.org/id/metropolitan-district-council/wolverhampton","722228","Inside out Group Europe Ltd","3539","-2,150.00","External Professional Fees","130236032","25/01/2019","-","GF - Interchange - Ph2 Train Station/MSCP/Metro Extension","C6002"
"Wolverhampton City Council","http://opendatacommunities.org/id/metropolitan-district-council/wolverhampton","722228","Inside out Group Europe Ltd","3528","2,150.00","External Professional Fees","130235470","25/01/2019","-","GF - Interchange - Ph2 Train Station/MSCP/Metro Extension","C6002"
"Wolverhampton City Council","http://opendatacommunities.org/id/metropolitan-district-council/wolverhampton","722228","Inside out Group Europe Ltd","3594","300.00","External Professional Fees","130239043","25/01/2019","-","GF - Interchange - Ph2 Train Station/MSCP/Metro Extension","C6002"
"Wolverhampton City Council","http://opendatacommunities.org/id/metropolitan-district-council/wolverhampton","722228","Inside out Group Europe Ltd","3640","2,110.00","External Professional Fees","130242292","30/01/2019","-","GF - Interchange - Ph2 Train Station/MSCP/Metro Extension","C6002"
"Wolverhampton City Council","http://opendatacommunities.org/id/metropolitan-district-council/wolverhampton","722232","National Assoc Child Contact Cent  NACCC","13040","500.00","Training Expenses","130239947","30/01/2019","Specialist Support","Contact Centre","R1650"
"Wolverhampton City Council","http://opendatacommunities.org/id/metropolitan-district-council/wolverhampton","722257","Harry Jones Company","182611","1,200.00","Grant Payments","130240869","18/01/2019","Markets","Wolverhampton Indoor and Open Market","R4700"
"Wolverhampton City Council","http://opendatacommunities.org/id/metropolitan-district-council/wolverhampton","722268","RT Training Academy","INV-28","1,396.75","Training Expenses","130242293","30/01/2019","Skills","IMPACT","R1650"
"Wolverhampton City Council","http://opendatacommunities.org/id/metropolitan-district-council/wolverhampton","722279","Topps Management & Support Services Ltd","TOPPS771CSCS","350.00","Training Expenses","130237255","02/01/2019","Skills","IMPACT","R1650"
"Wolverhampton City Council","http://opendatacommunities.org/id/metropolitan-district-council/wolverhampton","722286","Days Rental","1798147","279.00","Hire of Vehicles","190551534","18/01/2019","Fleet Services","Fleet Management","R3200"
"Wolverhampton City Council","http://opendatacommunities.org/id/metropolitan-district-council/wolverhampton","722286","Days Rental","1798148","279.00","Hire of Vehicles","190551535","18/01/2019","Fleet Services","Fleet Management","R3200"
"Wolverhampton City Council","http://opendatacommunities.org/id/metropolitan-district-council/wolverhampton","722286","Days Rental","1798150","279.00","Hire of Vehicles","190551537","18/01/2019","Fleet Services","Fleet Management","R3200"
"Wolverhampton City Council","http://opendatacommunities.org/id/metropolitan-district-council/wolverhampton","722286","Days Rental","1798726","462.00","Hire of Vehicles","190551538","18/01/2019","Fleet Services","Fleet Management","R3200"
"Wolverhampton City Council","http://opendatacommunities.org/id/metropolitan-district-council/wolverhampton","722286","Days Rental","1798149","279.00","Hire of Vehicles","190551536","18/01/2019","Fleet Services","Fleet Management","R3200"
"Wolverhampton City Council","http://opendatacommunities.org/id/metropolitan-district-council/wolverhampton","722297","Belvoir Property Manage I(UK)Ltd","001 - BACS Rejection","575.00","No Recourse to Public Funds","130240042","09/01/2019","Strengthening Families","CP Area 3 - Graiseley","R6314"
"Wolverhampton City Council","http://opendatacommunities.org/id/metropolitan-district-council/wolverhampton","722297","Belvoir Property Manage I(UK)Ltd","1 - BACS Rejection","575.00","No Recourse to Public Funds","130240041","09/01/2019","Strengthening Families","MASH","R6314"
"Wolverhampton City Council","http://opendatacommunities.org/id/metropolitan-district-council/wolverhampton","722312","Blackline Creative","00775","10,049.00","Services - Consultants","130237964","09/01/2019","Enterprise","Economic Development","R4404"
"Wolverhampton City Council","http://opendatacommunities.org/id/metropolitan-district-council/wolverhampton","722314","Johnsons Apparelmaster","BI111905","117.32","Protective Clothing","130241826","25/01/2019","Fleet Services","Fleet Management","R4200"
"Wolverhampton City Council","http://opendatacommunities.org/id/metropolitan-district-council/wolverhampton","722315","Waterman Infrastructure & Enviroment Ltd","CI050354","950.00","Construction and Conversion","130241093","25/01/2019","-","GF - Accessing Growth Fund","C1100"
"Wolverhampton City Council","http://opendatacommunities.org/id/metropolitan-district-council/wolverhampton","722315","Waterman Infrastructure & Enviroment Ltd","3128351","1,686.10","Services - Professional Fees","130239825","16/01/2019","Housing","Wholly Owned Company - Operations","R4400"
"Wolverhampton City Council","http://opendatacommunities.org/id/metropolitan-district-council/wolverhampton","722318","Provide CIC","4000011701 OOA Gum Apr to Jun 2018","132.00","TPP - Public Health Contracts","190545894","04/01/2019","Starting and Developing Well","Sexual Health","R5060"
"Wolverhampton City Council","http://opendatacommunities.org/id/metropolitan-district-council/wolverhampton","722318","Provide CIC","4000011960 OOA GUM Jul to Sept 2018","132.00","TPP - Public Health Contracts","190555914","30/01/2019","Starting and Developing Well","Sexual Health","R5060"
"Wolverhampton City Council","http://opendatacommunities.org/id/metropolitan-district-council/wolverhampton","722340","TDI","TDI19/46","5,450.00","Training Expenses","130240040","16/01/2019","Service Director Children & Young People","Children & Young People Support Costs","R1650"
"Wolverhampton City Council","http://opendatacommunities.org/id/metropolitan-district-council/wolverhampton","722361","Woodthorne Primary School","Woodthorne Primary Capital balance transfer","19,817.16","Grant Creditor - Capital","190551677","18/01/2019","Schools","Woodthorne Primary School","B5211"
"Wolverhampton City Council","http://opendatacommunities.org/id/metropolitan-district-council/wolverhampton","722361","Woodthorne Primary School","UIFSM Grant Payment 1 Sep 18 to 31 Mar 19 Woodthorne Primary","29,443.00","Grant Payments","190551676","18/01/2019","Schools","Woodthorne Primary School","R4700"
"Wolverhampton City Council","http://opendatacommunities.org/id/metropolitan-district-council/wolverhampton","722362","Sedgwick International UK","5717367","1,200.00","Insurance - General","130239662","09/01/2019","Audit Services","Property Insurances","R4962"
"Wolverhampton City Council","http://opendatacommunities.org/id/metropolitan-district-council/wolverhampton","722362","Sedgwick International UK","4616105","-1,200.00","Insurance - General","130239948","23/01/2019","Audit Services","Property Insurances","R4962"
"Wolverhampton City Council","http://opendatacommunities.org/id/metropolitan-district-council/wolverhampton","722362","Sedgwick International UK","5723723","1,583.33","Insurance - General","130239663","23/01/2019","Audit Services","Property Insurances","R4962"
"Wolverhampton City Council","http://opendatacommunities.org/id/metropolitan-district-council/wolverhampton","722362","Sedgwick International UK","5714219","1,200.00","Insurance - General","130242299","30/01/2019","Audit Services","Property Insurances","R4962"
"Wolverhampton City Council","http://opendatacommunities.org/id/metropolitan-district-council/wolverhampton","722364","Khayaal Theatre Company","0378","350.00","Education trips, Holidays, Outings & Activities","130238252","09/01/2019","School Improvement","SACRE","R4970"
"Wolverhampton City Council","http://opendatacommunities.org/id/metropolitan-district-council/wolverhampton","722381","Odyssey Learning & Development Ltd","INV-1061","3,036.90","Training Expenses","130239827","30/01/2019","Public Service Reform","Centralised Training","R1650"
"Wolverhampton City Council","http://opendatacommunities.org/id/metropolitan-district-council/wolverhampton","722382","Depict Creative Limited","1144","350.00","Marketing \ Non-staff advertising","130238083","09/01/2019","Corporate Communications","Communications & Marketing - General","R4317"
"Wolverhampton City Council","http://opendatacommunities.org/id/metropolitan-district-council/wolverhampton","722382","Depict Creative Limited","1145","1,580.30","Marketing \ Non-staff advertising","130238084","09/01/2019","Corporate Communications","Communications & Marketing - General","R4317"
"Wolverhampton City Council","http://opendatacommunities.org/id/metropolitan-district-council/wolverhampton","722384","52 Degrees North","2065","122.00","Printing","130238948","04/01/2019","Adult Education","Service Wide","R4300"
"Wolverhampton City Council","http://opendatacommunities.org/id/metropolitan-district-council/wolverhampton","722422","Dr Oystein E Olsen","OO-18/042/1","1,136.00","Services - Professional Fees","130239828","18/01/2019","Legal Services","Centralised External Legal Costs","R4400"
"Wolverhampton City Council","http://opendatacommunities.org/id/metropolitan-district-council/wolverhampton","722437","Your Health Partnership","FOS4163","230.00","Services - Professional Fees","190554216","25/01/2019","Children & Young People In Care","Fostering Team & Allowances","R4400"
"Wolverhampton City Council","http://opendatacommunities.org/id/metropolitan-district-council/wolverhampton","722445","Lichfield District Council","Local Authority Searches - Upper Pendeford Farm","110.83","Services - Professional Fees","130239949","09/01/2019","Estates and Valuations","Estates and Valuations Team","R4400"
"Wolverhampton City Council","http://opendatacommunities.org/id/metropolitan-district-council/wolverhampton","722453","Zoho Corporation B.V.","1413978","6,495.00","Computing - Purchase of Software","130241095","25/01/2019","ICTS","Strategic ICTS (ICT Service Budget)","R4531"
"Wolverhampton City Council","http://opendatacommunities.org/id/metropolitan-district-council/wolverhampton","722458","Roxanne Gooderham Fine Artist","169","31.14","Services - Professional Fees","130240611","23/01/2019","Visitor Economy","Art Gallery Shop","R4400"
"Wolverhampton City Council","http://opendatacommunities.org/id/metropolitan-district-council/wolverhampton","722460","Equifax Ltd","32","128.50","Refunds","130239668","04/01/2019","Public Service Reform","Electoral Registration","R4920"
"Wolverhampton City Council","http://opendatacommunities.org/id/metropolitan-district-council/wolverhampton","722479","The Office for Students","CUSTINV-0000333","19,810.83","Enhanced Pension","130240612","23/01/2019","Central Education","HEFC Ongoing Pensions Holding Account","R1301"
"Wolverhampton City Council","http://opendatacommunities.org/id/metropolitan-district-council/wolverhampton","722485","Lidl UK GMBH","Payment Request","37.00","Fees - Licensing - Licensing Act 2003","130240871","16/01/2019","Licensing","Licensing - Licensing Act 2003","R9329"
"Wolverhampton City Council","http://opendatacommunities.org/id/metropolitan-district-council/wolverhampton","722486","TDP Solicitors Practical Legal Services","PF/KB1/123075","3,000.00","Services - Professional Fees","190555130","30/01/2019","Housing Revenue Account","HRA Repairs & Maintenance - General","R4400"
"Wolverhampton City Council","http://opendatacommunities.org/id/metropolitan-district-council/wolverhampton","722506","St Chads & Chilcompton Surgery","FOS4169","73.86","Services - Professional Fees","190554220","25/01/2019","Children & Young People In Care","Fostering Team & Allowances","R4400"
"Wolverhampton City Council","http://opendatacommunities.org/id/metropolitan-district-council/wolverhampton","722506","St Chads & Chilcompton Surgery","FOS4170","73.86","Services - Professional Fees","190554221","25/01/2019","Children & Young People In Care","Fostering Team & Allowances","R4400"
"Wolverhampton City Council","http://opendatacommunities.org/id/metropolitan-district-council/wolverhampton","722507","Quinton Practice","FOS4171","101.12","Services - Professional Fees","190554222","25/01/2019","Children & Young People In Care","Fostering Team & Allowances","R4400"
"Wolverhampton City Council","http://opendatacommunities.org/id/metropolitan-district-council/wolverhampton","722507","Quinton Practice","FOS4172","101.12","Services - Professional Fees","190554223","25/01/2019","Children & Young People In Care","Fostering Team & Allowances","R4400"
